{"text_format":"1","workbook":"xlsx","n_sheets":19,"sheets":["DCU","Einzelergebnisse","MANNSCHAFTEN+SPIELER","Gast","Dialog2","Bemerkungen","Auswechslungen","Dialog3","VBA-Modul","Startcode","Spieltag","TAC","Abfrage","Beamer200W","Tickercode","Tabelle1","Beamer100W","Logo","übertrag"],"not_rendered":{"charts":0,"images":11,"macros":1,"external_links":0,"defined_names":88,"comments":1,"pivot_tables":0},"unopened":[{"sheet":"Gast","index":3,"reason":"not_a_worksheet"},{"sheet":"Dialog2","index":4,"reason":"not_a_worksheet"},{"sheet":"Bemerkungen","index":5,"reason":"not_a_worksheet"},{"sheet":"Auswechslungen","index":6,"reason":"not_a_worksheet"},{"sheet":"Dialog3","index":7,"reason":"not_a_worksheet"},{"sheet":"VBA-Modul","index":8,"reason":"part_missing"},{"sheet":"Startcode","index":9,"reason":"not_a_worksheet"},{"sheet":"Spieltag","index":10,"reason":"not_a_worksheet"},{"sheet":"TAC","index":11,"reason":"not_a_worksheet"},{"sheet":"Abfrage","index":12,"reason":"not_a_worksheet"},{"sheet":"Tickercode","index":14,"reason":"not_a_worksheet"}],"bounds":{"document_bytes":16777216,"sheet_cells":100000,"rows_first":2000,"rows_last":500,"rows_between":2000,"halvings":0,"cell_chars":16384,"cell_head_chars":4096},"cells_cut":0,"cells_raw":0,"read":"whole","date_system":"1900"}

{"sheet":"DCU","index":0,"n_rows":30,"n_cols":40,"rows_kept":30,"cut":false,"hidden":false,"merged":[[14,22,14,27],[15,22,15,27],[16,22,16,27],[14,10,14,14],[16,10,16,14],[17,1,17,7],[17,10,17,14],[17,17,17,21],[17,22,17,27],[29,2,29,9],[18,10,18,14],[18,17,18,27],[22,0,26,40],[29,17,29,26],[13,1,13,7],[11,17,11,21],[15,10,15,14],[16,17,16,21],[11,10,11,14],[12,10,12,14],[12,17,12,21],[14,17,14,21],[15,17,15,21],[16,1,16,7],[14,1,14,7],[15,1,15,7],[13,17,13,21],[10,1,10,7],[11,1,11,7],[12,1,12,7],[9,22,9,27],[9,1,9,7],[9,17,9,21],[10,22,10,27],[11,22,11,27],[9,10,9,14],[10,10,10,14],[12,22,12,27],[10,17,10,21],[7,24,7,40],[1,12,1,14],[5,2,5,4],[3,2,3,4],[4,2,4,4],[2,2,2,4],[4,34,4,39],[2,34,2,39],[7,2,7,16],[1,37,1,40],[0,16,0,26],[2,12,2,14],[3,12,3,14],[4,12,4,14],[5,12,5,14],[1,21,1,27],[5,21,5,27],[2,21,2,27],[3,21,3,27],[4,21,4,27],[9,36,9,40],[13,36,13,40],[10,29,10,33],[11,29,11,33],[10,36,10,40],[11,36,11,40],[13,29,13,33],[9,29,9,33],[15,36,15,40],[12,36,12,40],[14,29,14,33],[13,22,13,27],[30,8,30,22],[15,29,15,33],[14,36,14,40],[12,29,12,33],[13,10,13,14],[16,36,16,40],[16,29,16,33],[17,36,17,40],[17,29,17,33],[29,30,29,40],[18,36,18,40],[18,29,18,33]]}
[null,null,null,null,null,null,null,null,null,null,null,null,null,null,null,null,"Ligaleitung:   Bernd Strauch,\nTel. 06221-765307 / Fax 03222-1509867\nligaleitung@dcu-ev.de",null,null,null,null,null,null,null,null,null,null,"      Spielbericht"]
[null,null,null,null,null,null,null,null,"SENIOREN",null,null,null,{"$f":"IF(übertrag!Q11=TRUE,\"X\",\"\")","v":""},null,null,null,"Land:",null,null,null,null,null,null,null,null,null,null,null,null,null,null,null,null,null,null,null,null,"V3.5"]
["CLUBSPIEL",null,{"$f":"IF(übertrag!Q2=TRUE,\"X\",\"\")","v":"X"},null,null,null,null,null,"FRAUEN",null,null,null,{"$f":"IF(übertrag!Q6=TRUE,\"X\",\"\")","v":""},null,null,null,"Ort:",null,null,null,null,null,null,null,null,null,null,null,null,null,null,null,null,"Datum:"]
["POKALSPIEL",null,{"$f":"IF(übertrag!Q3=TRUE,\"X\",\"\")","v":""},null,null,null,null,null,"MÄNNER",null,null,null,{"$f":"IF(übertrag!Q5=TRUE,\"X\",\"\")","v":"X"},null,null,null,"Bahnanlage:"]
["LÄNDERSPIEL",null,{"$f":"IF(übertrag!Q4=TRUE,\"X\",\"\")","v":""},null,null,null,null,null,"U23",null,null,null,{"$f":"IF(übertrag!Q7=TRUE,\"X\",\"\")","v":""},null,null,null,"Spielbeginn",null,null,null,null,null,null,null,null,null,null,null,null,null,null,null,null,"Spielende:"]
["KV-SPIEL",null,null,null,null,null,null,null,"U18/14/10",null,null,null,{"$f":"IF(übertrag!Q8=TRUE,\"X\",\"\")","v":""},null,null,null,"Liga",null,null,null,null,null,null,null,null,null,null,null,null,null,null,null,null,null,"Spieltag: ",{"$f":"IF(übertrag!AF25=23,\"\",übertrag!AE32)","v":1}]
[]
["Heimmannschaft:",null,{"$f":"'MANNSCHAFTEN+SPIELER'!W3","v":"Heim"},null,null,null,null,null,null,null,null,null,null,null,null,null,null,"Gastmannschaft:",null,null,null,null,null,null,{"$f":"IF(übertrag!H2,VLOOKUP(übertrag!H2,Gastmannschaft,2,),\"\")","v":"Gast 1"}]
[]
["Pass-Nr.","Vorname, Name",null,null,null,null,null,null,"Mon/Jahr","Voll","Abräumen",null,null,null,null,"Fehler","Gesamt","Pass-Nr.",null,null,null,null,"Vorname, Name",null,null,null,null,null,"Mon/Jahr","Voll",null,null,null,null,"Abräumen","Fehler","Gesamt"]
[{"$f":"übertrag!O16","v":0},{"$f":"übertrag!Z2","v":0},null,null,null,null,null,null,{"$f":"übertrag!M16","v":"00:00:00"},{"$f":"IF(Einzelergebnisse!C9=0,\"\",Einzelergebnisse!C9)","v":""},{"$f":"IF(Einzelergebnisse!D9=0,\"\",Einzelergebnisse!D9)","v":""},null,null,null,null,{"$f":"IF(Einzelergebnisse!A5=0,\"\",Einzelergebnisse!E9)","v":""},{"$f":"IF(Einzelergebnisse!F9=0,\"\",Einzelergebnisse!F9)","v":""},{"$f":"IF(übertrag!O2=\"\",übertrag!P2,übertrag!O2)","v":0},null,null,null,null,{"$f":"IF(übertrag!K2=\"\",übertrag!L2,übertrag!K2)","v":0},null,null,null,null,null,{"$f":"IF(übertrag!M2=\"\",übertrag!N2,übertrag!M2)","v":"00:00:00"},{"$f":"IF(Einzelergebnisse!J9=0,\"\",Einzelergebnisse!J9)","v":""},null,null,null,null,{"$f":"IF(Einzelergebnisse!K9=0,\"\",Einzelergebnisse!K9)","v":""},{"$f":"IF(Einzelergebnisse!H5=0,\"\",Einzelergebnisse!L9)","v":""},{"$f":"IF(Einzelergebnisse!M9=0,\"\",Einzelergebnisse!M9)","v":""}]
[{"$f":"übertrag!O17","v":0},{"$f":"übertrag!Z3","v":0},null,null,null,null,null,null,{"$f":"übertrag!M17","v":"00:00:00"},{"$f":"IF(Einzelergebnisse!C16=0,\"\",Einzelergebnisse!C16)","v":""},{"$f":"IF(Einzelergebnisse!D16=0,\"\",Einzelergebnisse!D16)","v":""},null,null,null,null,{"$f":"IF(Einzelergebnisse!A12=0,\"\",Einzelergebnisse!E16)","v":""},{"$f":"IF(Einzelergebnisse!F16=0,\"\",Einzelergebnisse!F16)","v":""},{"$f":"IF(übertrag!O3=\"\",übertrag!P3,übertrag!O3)","v":0},null,null,null,null,{"$f":"IF(übertrag!K3=\"\",übertrag!L3,übertrag!K3)","v":0},null,null,null,null,null,{"$f":"IF(übertrag!M3=\"\",übertrag!N3,übertrag!M3)","v":"00:00:00"},{"$f":"IF(Einzelergebnisse!J16=0,\"\",Einzelergebnisse!J16)","v":""},null,null,null,null,{"$f":"IF(Einzelergebnisse!K16=0,\"\",Einzelergebnisse!K16)","v":""},{"$f":"IF(Einzelergebnisse!H12=0,\"\",Einzelergebnisse!L16)","v":""},{"$f":"IF(Einzelergebnisse!M16=0,\"\",Einzelergebnisse!M16)","v":""}]
[{"$f":"übertrag!O18","v":0},{"$f":"übertrag!Z4","v":0},null,null,null,null,null,null,{"$f":"übertrag!M18","v":"00:00:00"},{"$f":"IF(Einzelergebnisse!C23=0,\"\",Einzelergebnisse!C23)","v":""},{"$f":"IF(Einzelergebnisse!D23=0,\"\",Einzelergebnisse!D23)","v":""},null,null,null,null,{"$f":"IF(Einzelergebnisse!A19=0,\"\",Einzelergebnisse!E23)","v":""},{"$f":"IF(Einzelergebnisse!F23=0,\"\",Einzelergebnisse!F23)","v":""},{"$f":"IF(übertrag!O4=\"\",übertrag!P4,übertrag!O4)","v":0},null,null,null,null,{"$f":"IF(übertrag!K4=\"\",übertrag!L4,übertrag!K4)","v":0},null,null,null,null,null,{"$f":"IF(übertrag!M4=\"\",übertrag!N4,übertrag!M4)","v":"00:00:00"},{"$f":"IF(Einzelergebnisse!J23=0,\"\",Einzelergebnisse!J23)","v":""},null,null,null,null,{"$f":"IF(Einzelergebnisse!K23=0,\"\",Einzelergebnisse!K23)","v":""},{"$f":"IF(Einzelergebnisse!H19=0,\"\",Einzelergebnisse!L23)","v":""},{"$f":"IF(Einzelergebnisse!M23=0,\"\",Einzelergebnisse!M23)","v":""}]
[{"$f":"übertrag!O19","v":0},{"$f":"übertrag!Z5","v":0},null,null,null,null,null,null,{"$f":"übertrag!M19","v":"00:00:00"},{"$f":"IF(Einzelergebnisse!C30=0,\"\",Einzelergebnisse!C30)","v":""},{"$f":"IF(Einzelergebnisse!D30=0,\"\",Einzelergebnisse!D30)","v":""},null,null,null,null,{"$f":"IF(Einzelergebnisse!A26=0,\"\",Einzelergebnisse!E30)","v":""},{"$f":"IF(Einzelergebnisse!F30=0,\"\",Einzelergebnisse!F30)","v":""},{"$f":"IF(übertrag!O5=\"\",übertrag!P5,übertrag!O5)","v":0},null,null,null,null,{"$f":"IF(übertrag!K5=\"\",übertrag!L5,übertrag!K5)","v":0},null,null,null,null,null,{"$f":"IF(übertrag!M5=\"\",übertrag!N5,übertrag!M5)","v":"00:00:00"},{"$f":"IF(Einzelergebnisse!J30=0,\"\",Einzelergebnisse!J30)","v":""},null,null,null,null,{"$f":"IF(Einzelergebnisse!K30=0,\"\",Einzelergebnisse!K30)","v":""},{"$f":"IF(Einzelergebnisse!H26=0,\"\",Einzelergebnisse!L30)","v":""},{"$f":"IF(Einzelergebnisse!M30=0,\"\",Einzelergebnisse!M30)","v":""}]
[{"$f":"übertrag!O20","v":0},{"$f":"übertrag!Z6","v":0},null,null,null,null,null,null,{"$f":"übertrag!M20","v":"00:00:00"},{"$f":"IF(Einzelergebnisse!C37=0,\"\",Einzelergebnisse!C37)","v":""},{"$f":"IF(Einzelergebnisse!D37=0,\"\",Einzelergebnisse!D37)","v":""},null,null,null,null,{"$f":"IF(Einzelergebnisse!A33=0,\"\",Einzelergebnisse!E37)","v":""},{"$f":"IF(Einzelergebnisse!F37=0,\"\",Einzelergebnisse!F37)","v":""},{"$f":"IF(übertrag!O6=\"\",übertrag!P6,übertrag!O6)","v":0},null,null,null,null,{"$f":"IF(übertrag!K6=\"\",übertrag!L6,übertrag!K6)","v":0},null,null,null,null,null,{"$f":"IF(übertrag!M6=\"\",übertrag!N6,übertrag!M6)","v":"00:00:00"},{"$f":"IF(Einzelergebnisse!J37=0,\"\",Einzelergebnisse!J37)","v":""},null,null,null,null,{"$f":"IF(Einzelergebnisse!K37=0,\"\",Einzelergebnisse!K37)","v":""},{"$f":"IF(Einzelergebnisse!H33=0,\"\",Einzelergebnisse!L37)","v":""},{"$f":"IF(Einzelergebnisse!M37=0,\"\",Einzelergebnisse!M37)","v":""}]
[{"$f":"übertrag!O21","v":0},{"$f":"übertrag!Z7","v":0},null,null,null,null,null,null,{"$f":"übertrag!M21","v":"00:00:00"},{"$f":"IF(Einzelergebnisse!C44=0,\"\",Einzelergebnisse!C44)","v":""},{"$f":"IF(Einzelergebnisse!D44=0,\"\",Einzelergebnisse!D44)","v":""},null,null,null,null,{"$f":"IF(Einzelergebnisse!A40=0,\"\",Einzelergebnisse!E44)","v":""},{"$f":"IF(Einzelergebnisse!F44=0,\"\",Einzelergebnisse!F44)","v":""},{"$f":"IF(übertrag!O7=\"\",übertrag!P7,übertrag!O7)","v":0},null,null,null,null,{"$f":"IF(übertrag!K7=\"\",übertrag!L7,übertrag!K7)","v":0},null,null,null,null,null,{"$f":"IF(übertrag!M7=\"\",übertrag!N7,übertrag!M7)","v":"00:00:00"},{"$f":"IF(Einzelergebnisse!J44=0,\"\",Einzelergebnisse!J44)","v":""},null,null,null,null,{"$f":"IF(Einzelergebnisse!K44=0,\"\",Einzelergebnisse!K44)","v":""},{"$f":"IF(Einzelergebnisse!H40=0,\"\",Einzelergebnisse!L44)","v":""},{"$f":"IF(Einzelergebnisse!M44=0,\"\",Einzelergebnisse!M44)","v":""}]
[{"$f":"übertrag!O22","v":0},{"$f":"übertrag!Z8","v":0},null,null,null,null,null,null,{"$f":"übertrag!M22","v":"00:00:00"},{"$f":"IF(Einzelergebnisse!C51=0,\"\",Einzelergebnisse!C51)","v":""},{"$f":"IF(Einzelergebnisse!D51=0,\"\",Einzelergebnisse!D51)","v":""},null,null,null,null,{"$f":"IF(Einzelergebnisse!A47=0,\"\",Einzelergebnisse!E51)","v":""},{"$f":"IF(Einzelergebnisse!F51=0,\"\",Einzelergebnisse!F51)","v":""},{"$f":"IF(übertrag!O8=\"\",übertrag!P8,übertrag!O8)","v":0},null,null,null,null,{"$f":"IF(übertrag!K8=\"\",übertrag!L8,übertrag!K8)","v":0},null,null,null,null,null,{"$f":"IF(übertrag!M8=\"\",übertrag!N8,übertrag!M8)","v":"00:00:00"},{"$f":"IF(Einzelergebnisse!J51=0,\"\",Einzelergebnisse!J51)","v":""},null,null,null,null,{"$f":"IF(Einzelergebnisse!K51=0,\"\",Einzelergebnisse!K51)","v":""},{"$f":"IF(Einzelergebnisse!H47=0,\"\",Einzelergebnisse!L51)","v":""},{"$f":"IF(Einzelergebnisse!M51=0,\"\",Einzelergebnisse!M51)","v":""}]
[{"$f":"übertrag!O23","v":0},{"$f":"übertrag!Z9","v":0},null,null,null,null,null,null,{"$f":"übertrag!M23","v":"00:00:00"},{"$f":"IF(Einzelergebnisse!C58=0,\"\",Einzelergebnisse!C58)","v":""},{"$f":"IF(Einzelergebnisse!D58=0,\"\",Einzelergebnisse!D58)","v":""},null,null,null,null,{"$f":"IF(Einzelergebnisse!A54=0,\"\",Einzelergebnisse!E58)","v":""},{"$f":"IF(Einzelergebnisse!F58=0,\"\",Einzelergebnisse!F58)","v":""},{"$f":"IF(übertrag!O9=\"\",übertrag!P9,übertrag!O9)","v":0},null,null,null,null,{"$f":"IF(übertrag!K9=\"\",übertrag!L9,übertrag!K9)","v":0},null,null,null,null,null,{"$f":"IF(übertrag!M9=\"\",übertrag!N9,übertrag!M9)","v":"00:00:00"},{"$f":"IF(Einzelergebnisse!J58=0,\"\",Einzelergebnisse!J58)","v":""},null,null,null,null,{"$f":"IF(Einzelergebnisse!K58=0,\"\",Einzelergebnisse!K58)","v":""},{"$f":"IF(Einzelergebnisse!H54=0,\"\",Einzelergebnisse!L58)","v":""},{"$f":"IF(Einzelergebnisse!M58=0,\"\",Einzelergebnisse!M58)","v":""}]
["Differenz:",{"$f":"SUM(Q19-AK19)","v":0},null,null,null,null,null,null,null,{"$f":"SUM(J11:J18)","v":0},{"$f":"SUM(K11:O18)","v":0},null,null,null,null,{"$f":"SUM(P11:P18)","v":0},{"$f":"SUM(Q11:Q18)","v":0},null,null,null,null,null,null,null,null,null,null,null,null,{"$f":"SUM(AD11:AH18)","v":0},null,null,null,null,{"$f":"SUM(AI11:AI18)","v":0},{"$f":"SUM(AJ11:AJ18)","v":0},{"$f":"SUM(AK11:AO18)","v":0}]
[null,null,null,null,"Ja",null,"Nein",null,null,null,null,"Ja",null,"Nein",null,null,null,null,"Ja",null,"Nein",null,null,null,"Ja",null,"Nein",null,null,null,"Ja",null,"Nein",null,null,null,null,"Ja",null,"Nein"]
[null,null,"1) Bahn/Kugelmaterial in Ordnung",null,{"$f":"IF(übertrag!Q21=TRUE,\"x\",\"\")","v":"x"},null,{"$f":"IF(übertrag!Q9=TRUE,\"x\",\"\")","v":""},null,null,"2) Pässe in Ordnung",null,{"$f":"IF(übertrag!Q22=TRUE,\"x\",\"\")","v":"x"},null,{"$f":"IF(übertrag!Q10=TRUE,\"x\",\"\")","v":""},null,null,"Protest",null,{"$f":"IF(übertrag!Q23=TRUE,\"x\",\"\")","v":""},null,{"$f":"IF(übertrag!Q16=TRUE,\"x\",\"\")","v":"x"},null,"4) Verletzung",null,{"$f":"IF(übertrag!Q24=TRUE,\"x\",\"\")","v":""},null,{"$f":"IF(übertrag!Q17=TRUE,\"x\",\"\")","v":"x"},null,"5) Verwarnung",null,{"$f":"IF(übertrag!Q25=TRUE,\"x\",\"\")","v":""},null,{"$f":"IF(übertrag!Q18=TRUE,\"x\",\"\")","v":"x"},null,null,"6) Sonstiges",null,{"$f":"IF(übertrag!Q26=TRUE,\"x\",\"\")","v":""},null,{"$f":"IF(übertrag!Q19=TRUE,\"x\",\"\")","v":"x"}]
[]
[]
[]
[]
[]
[]
[null,null,null,null,"Ja",null,"Nein",null,null,null,null,null,null,null,null,null,null,null,null,null,null,null,null,null,null,null,null,null,null,null,"Ja",null,"Nein"]
[null,null,"Schiedsrichter O.K.",null,{"$f":"IF(übertrag!Q27=TRUE,\"x\",\"\")","v":"x"},null,{"$f":"IF(übertrag!Q28=TRUE,\"x\",\"\")","v":""},null,null,null,null,null,null,null,null,null,null,null,null,null,null,null,null,null,null,null,null,null,"Schiedsrichter O.K.",null,{"$f":"IF(übertrag!Q29=TRUE,\"x\",\"\")","v":"x"},null,{"$f":"IF(übertrag!Q30=TRUE,\"x\",\"\")","v":""},null,null,null,null,"Anlagen",null,{"$f":"IF(übertrag!Q20=TRUE,\"x\",\"\")","v":""}]
["Heimmannschaft:",null,null,null,null,null,null,null,null,null,null,null,null,null,null,null,"Schiedsrichter/Aufsicht:",null,null,null,null,null,null,null,null,null,null,null,"Gastmannschaft:"]

{"sheet":"Einzelergebnisse","index":1,"n_rows":58,"n_cols":13,"rows_kept":58,"cut":false,"hidden":false,"merged":[[1,7,1,12],[1,0,1,5],[0,1,0,2],[0,8,0,9]]}
["Endergebnis",{"$f":"SUM(F9,F16,F23,F30,F37,F44,F51,F58)","v":0},null,"Kegel",null,null,null,"Endergebnis",{"$f":"SUM(M9,M16,M23,M30,M37,M44,M51,M58)","v":0},null,"Kegel"]
[{"$f":"DCU!C8","v":"Heim"},null,null,null,null,null,null,{"$f":"DCU!Y8","v":"Gast 1"}]
[]
["Name","Bahn","Volle","Abr","Fe","Gesamt",null,"Name","Bahn","Volle","Abr","Fe","Gesamt"]
[{"$f":"DCU!B11","v":0},1,null,{"$f":"SUM(F5-C5)","v":0},null,null,null,{"$f":"DCU!W11","v":0},1,null,{"$f":"SUM(M5-J5)","v":0}]
[null,2,null,{"$f":"SUM(F6-C6)","v":0},null,null,null,null,2,null,{"$f":"SUM(M6-J6)","v":0}]
[null,3,null,{"$f":"SUM(F7-C7)","v":0},null,null,null,null,3,null,{"$f":"SUM(M7-J7)","v":0}]
[null,4,null,{"$f":"SUM(F8-C8)","v":0},null,null,null,null,4,null,{"$f":"SUM(M8-J8)","v":0}]
[null,null,{"$f":"SUM(C5:C8)","v":0},{"$f":"SUM(D5:D8)","v":0},{"$f":"SUM(E5:E8)","v":0},{"$f":"SUM(F5:F8)","v":0},null,null,null,{"$f":"SUM(J5:J8)","v":0},{"$f":"SUM(K5:K8)","v":0},{"$f":"SUM(L5:L8)","v":0},{"$f":"SUM(M5:M8)","v":0}]
[]
["Name","Bahn","Volle","Abr","Fe","Gesamt",null,"Name","Bahn","Volle","Abr","Fe","Gesamt"]
[{"$f":"DCU!B12","v":0},1,null,{"$f":"SUM(F12-C12)","v":0},null,null,null,{"$f":"DCU!W12","v":0},1,null,{"$f":"SUM(M12-J12)","v":0}]
[null,2,null,{"$f":"SUM(F13-C13)","v":0},null,null,null,null,2,null,{"$f":"SUM(M13-J13)","v":0}]
[null,3,null,{"$f":"SUM(F14-C14)","v":0},null,null,null,null,3,null,{"$f":"SUM(M14-J14)","v":0}]
[null,4,null,{"$f":"SUM(F15-C15)","v":0},null,null,null,null,4,null,{"$f":"SUM(M15-J15)","v":0}]
[null,null,{"$f":"SUM(C12:C15)","v":0},{"$f":"SUM(D12:D15)","v":0},{"$f":"SUM(E12:E15)","v":0},{"$f":"SUM(F12:F15)","v":0},null,null,null,{"$f":"SUM(J12:J15)","v":0},{"$f":"SUM(K12:K15)","v":0},{"$f":"SUM(L12:L15)","v":0},{"$f":"SUM(M12:M15)","v":0}]
[]
["Name","Bahn","Volle","Abr","Fe","Gesamt",null,"Name","Bahn","Volle","Abr","Fe","Gesamt"]
[{"$f":"DCU!B13","v":0},1,null,{"$f":"SUM(F19-C19)","v":0},null,null,null,{"$f":"DCU!W13","v":0},1,null,{"$f":"SUM(M19-J19)","v":0}]
[null,2,null,{"$f":"SUM(F20-C20)","v":0},null,null,null,null,2,null,{"$f":"SUM(M20-J20)","v":0}]
[null,3,null,{"$f":"SUM(F21-C21)","v":0},null,null,null,null,3,null,{"$f":"SUM(M21-J21)","v":0}]
[null,4,null,{"$f":"SUM(F22-C22)","v":0},null,null,null,null,4,null,{"$f":"SUM(M22-J22)","v":0}]
[null,null,{"$f":"SUM(C19:C22)","v":0},{"$f":"SUM(D19:D22)","v":0},{"$f":"SUM(E19:E22)","v":0},{"$f":"SUM(F19:F22)","v":0},null,null,null,{"$f":"SUM(J19:J22)","v":0},{"$f":"SUM(K19:K22)","v":0},{"$f":"SUM(L19:L22)","v":0},{"$f":"SUM(M19:M22)","v":0}]
[]
["Name","Bahn","Volle","Abr","Fe","Gesamt",null,"Name","Bahn","Volle","Abr","Fe","Gesamt"]
[{"$f":"DCU!B14","v":0},1,null,{"$f":"SUM(F26-C26)","v":0},null,null,null,{"$f":"DCU!W14","v":0},1,null,{"$f":"SUM(M26-J26)","v":0}]
[null,2,null,{"$f":"SUM(F27-C27)","v":0},null,null,null,null,2,null,{"$f":"SUM(M27-J27)","v":0}]
[null,3,null,{"$f":"SUM(F28-C28)","v":0},null,null,null,null,3,null,{"$f":"SUM(M28-J28)","v":0}]
[null,4,null,{"$f":"SUM(F29-C29)","v":0},null,null,null,null,4,null,{"$f":"SUM(M29-J29)","v":0}]
[null,null,{"$f":"SUM(C26:C29)","v":0},{"$f":"SUM(D26:D29)","v":0},{"$f":"SUM(E26:E29)","v":0},{"$f":"SUM(F26:F29)","v":0},null,null,null,{"$f":"SUM(J26:J29)","v":0},{"$f":"SUM(K26:K29)","v":0},{"$f":"SUM(L26:L29)","v":0},{"$f":"SUM(M26:M29)","v":0}]
[]
["Name","Bahn","Volle","Abr","Fe","Gesamt",null,"Name","Bahn","Volle","Abr","Fe","Gesamt"]
[{"$f":"DCU!B15","v":0},1,null,{"$f":"SUM(F33-C33)","v":0},null,null,null,{"$f":"DCU!W15","v":0},1,null,{"$f":"SUM(M33-J33)","v":0}]
[null,2,null,{"$f":"SUM(F34-C34)","v":0},null,null,null,null,2,null,{"$f":"SUM(M34-J34)","v":0}]
[null,3,null,{"$f":"SUM(F35-C35)","v":0},null,null,null,null,3,null,{"$f":"SUM(M35-J35)","v":0}]
[null,4,null,{"$f":"SUM(F36-C36)","v":0},null,null,null,null,4,null,{"$f":"SUM(M36-J36)","v":0}]
[null,null,{"$f":"SUM(C33:C36)","v":0},{"$f":"SUM(D33:D36)","v":0},{"$f":"SUM(E33:E36)","v":0},{"$f":"SUM(F33:F36)","v":0},null,null,null,{"$f":"SUM(J33:J36)","v":0},{"$f":"SUM(K33:K36)","v":0},{"$f":"SUM(L33:L36)","v":0},{"$f":"SUM(M33:M36)","v":0}]
[]
["Name","Bahn","Volle","Abr","Fe","Gesamt",null,"Name","Bahn","Volle","Abr","Fe","Gesamt"]
[{"$f":"DCU!B16","v":0},1,null,{"$f":"SUM(F40-C40)","v":0},null,null,null,{"$f":"DCU!W16","v":0},1,null,{"$f":"SUM(M40-J40)","v":0}]
[null,2,null,{"$f":"SUM(F41-C41)","v":0},null,null,null,null,2,null,{"$f":"SUM(M41-J41)","v":0}]
[null,3,null,{"$f":"SUM(F42-C42)","v":0},null,null,null,null,3,null,{"$f":"SUM(M42-J42)","v":0}]
[null,4,null,{"$f":"SUM(F43-C43)","v":0},null,null,null,null,4,null,{"$f":"SUM(M43-J43)","v":0}]
[null,null,{"$f":"SUM(C40:C43)","v":0},{"$f":"SUM(D40:D43)","v":0},{"$f":"SUM(E40:E43)","v":0},{"$f":"SUM(F40:F43)","v":0},null,null,null,{"$f":"SUM(J40:J43)","v":0},{"$f":"SUM(K40:K43)","v":0},{"$f":"SUM(L40:L43)","v":0},{"$f":"SUM(M40:M43)","v":0}]
[]
["Name","Bahn","Volle","Abr","Fe","Gesamt",null,"Name","Bahn","Volle","Abr","Fe","Gesamt"]
[{"$f":"DCU!B17","v":0},1,null,{"$f":"SUM(F47-C47)","v":0},null,null,null,{"$f":"DCU!W17","v":0},1,null,{"$f":"SUM(M47-J47)","v":0}]
[null,2,null,{"$f":"SUM(F48-C48)","v":0},null,null,null,null,2,null,{"$f":"SUM(M48-J48)","v":0}]
[null,3,null,{"$f":"SUM(F49-C49)","v":0},null,null,null,null,3,null,{"$f":"SUM(M49-J49)","v":0}]
[null,4,null,{"$f":"SUM(F50-C50)","v":0},null,null,null,null,4,null,{"$f":"SUM(M50-J50)","v":0}]
[null,null,{"$f":"SUM(C47:C50)","v":0},{"$f":"SUM(D47:D50)","v":0},{"$f":"SUM(E47:E50)","v":0},{"$f":"SUM(F47:F50)","v":0},null,null,null,{"$f":"SUM(J47:J50)","v":0},{"$f":"SUM(K47:K50)","v":0},{"$f":"SUM(L47:L50)","v":0},{"$f":"SUM(M47:M50)","v":0}]
[]
["Name","Bahn","Volle","Abr","Fe","Gesamt",null,"Name","Bahn","Volle","Abr","Fe","Gesamt"]
[{"$f":"DCU!B18","v":0},1,null,{"$f":"SUM(F54-C54)","v":0},null,null,null,{"$f":"DCU!W18","v":0},1,null,{"$f":"SUM(M54-J54)","v":0}]
[null,2,null,{"$f":"SUM(F55-C55)","v":0},null,null,null,null,2,null,{"$f":"SUM(M55-J55)","v":0}]
[null,3,null,{"$f":"SUM(F56-C56)","v":0},null,null,null,null,3,null,{"$f":"SUM(M56-J56)","v":0}]
[null,4,null,{"$f":"SUM(F57-C57)","v":0},null,null,null,null,4,null,{"$f":"SUM(M57-J57)","v":0}]
[null,null,{"$f":"SUM(C54:C57)","v":0},{"$f":"SUM(D54:D57)","v":0},{"$f":"SUM(E54:E57)","v":0},{"$f":"SUM(F54:F57)","v":0},null,null,null,{"$f":"SUM(J54:J57)","v":0},{"$f":"SUM(K54:K57)","v":0},{"$f":"SUM(L54:L57)","v":0},{"$f":"SUM(M54:M57)","v":0}]

{"sheet":"MANNSCHAFTEN+SPIELER","index":2,"n_rows":716,"n_cols":31,"rows_kept":716,"cut":false,"hidden":false,"merged":[[0,22,0,30],[0,0,0,6]]}
["Gastmannschaften",null,null,null,null,null,null,null,null,null,null,null,null,null,null,null,null,null,null,null,null,null,"Heimmannschaft"]
["CLUB / Verein",null,"Mon/Jahr",null,"Paß-     Nummer",null,"Vorname, Name",null,"Paß DCU","Paß DKB","Paß LV/RV",null,"Paß-Steuerung",null,"Kugelnummern",null,null,null,null,null,null,null,"CLUB / Verein",null,"Mon/Jahr",null,"DCU-Paß","DKB-Paß","LV-Paß",null,"Vorname, Name"]
["Gast 1",1,null,1,null,1,null,1,null,null,null,1,null,1,null,null,null,null,null,null,null,null,"Heim",1,null,1,null,null,null,1]
[null,2,null,2,null,2,null,2,null,null,null,2,null,2,null,null,null,null,null,null,null,null,null,2,null,2,null,null,null,2]
[null,3,null,3,null,3,null,3,null,null,null,3,null,3,null,null,null,null,null,null,null,null,null,3,null,3,null,null,null,3]
[null,4,null,4,null,4,null,4,null,null,null,4,null,4,null,null,null,null,null,null,null,null,null,4,null,4,null,null,null,4]
[null,5,null,5,null,5,null,5,null,null,null,5,null,5,null,null,null,null,null,null,null,null,null,5,null,5,null,null,null,5]
[null,6,null,6,null,6,null,6,null,null,null,6,null,6,null,null,null,null,null,null,null,null,null,6,null,6,null,null,null,6]
[null,7,null,7,null,7,null,7,null,null,null,7,null,7,null,null,null,null,null,null,null,null,null,7,null,7,null,null,null,7]
[null,8,null,8,null,8,null,8,null,null,null,8,null,8,null,null,null,null,null,null,null,null,null,8,null,8,null,null,null,8]
[null,9,null,9,null,9,null,9,null,null,null,9,null,9,null,null,null,null,null,null,null,null,null,9,null,9,null,null,null,9]
[null,10,null,10,null,10,null,10,null,null,null,10,null,10,null,null,null,null,null,null,null,null,null,10,null,10,null,null,null,10]
[null,11,null,11,null,11,null,11,null,null,null,11,null,11,null,null,null,null,null,null,null,null,null,11,null,11,null,null,null,11]
[null,12,null,12,null,12,null,12,null,null,null,12,null,12,null,null,null,null,null,null,null,null,null,12,null,12,null,null,null,12]
[null,13,null,13,null,13,null,13,null,null,null,13,null,13,null,1,"X",1,"eins",1,1,null,null,13,null,13,null,null,null,13]
[null,14,null,14,null,14,null,14,null,null,null,14,null,14,null,null,null,null,null,null,null,null,null,14,null,14,null,null,null,14]
[null,15,null,15,null,15,null,15,null,null,null,15,null,15,null,null,null,null,null,null,null,null,null,15,null,15,null,null,null,15]
[null,16,null,16,null,16,null,16,null,null,null,16,null,16,null,null,null,null,null,null,null,null,null,16,null,16,null,null,null,16]
[null,17,null,17,null,17,null,17,null,null,null,17,null,17,null,null,null,null,null,null,null,null,null,17,null,17,null,null,null,17]
[null,18,null,18,null,18,null,18,null,null,null,18,null,18,null,null,null,null,null,null,null,null,null,18,null,18,null,null,null,18]
[null,19,null,19,null,19,null,19,null,null,null,19,null,19,null,null,null,null,null,null,null,null,null,19,null,19,null,null,null,19]
[null,20,null,20,null,20,null,20,null,null,null,20,null,20,null,null,null,null,null,null,null,null,null,20,null,20,null,null,null,20]
[null,21,null,21,null,21,null,21,null,null,null,21,null,21,null,null,null,null,null,null,null,null,null,21,null,21,null,null,null,21]
[null,22,null,22,null,22,null,22,null,null,null,22,null,22,null,null,null,null,null,null,null,null,null,22,null,22,null,null,null,22]
[null,23,null,23,null,23,null,23,null,null,null,23,null,23,null,null,null,null,null,null,null,null,null,23,null,23,null,null,null,23]
[null,24,null,24,null,24,null,24,null,null,null,24,null,24,null,null,null,null,null,null,null,null,null,24,null,24,null,null,null,24]
[null,25,null,25,null,25,null,25,null,null,null,25,null,25,null,null,null,null,null,null,null,null,null,25,null,25,null,null,null,25]
[null,26,null,26,null,26,null,26,null,null,null,26,null,26,null,null,null,null,null,null,null,null,null,26,null,26,null,null,null,26]
[null,27,null,27,null,27,null,27,null,null,null,27,null,27,null,null,null,null,null,null,null,null,null,27,null,27,null,null,null,27]
[null,28,null,28,null,28,null,28,null,null,null,28,null,28,null,null,null,null,null,null,null,null,null,28,null,28,null,null,null,28]
[null,29,null,29,null,29,null,29,null,null,null,29,null,29,null,null,null,null,null,null,null,null,null,29,null,29,null,null,null,29]
[null,30,null,30,null,30,null,30,null,null,null,30,null,30,null,null,null,null,null,null,null,null,null,30,null,30,null,null,null,30]
[null,31,null,31,null,31,null,31,null,null,null,31,null,31,null,null,null,null,null,null,null,null,null,31,null,31,null,null,null,31]
[null,32,null,32,null,32,null,32,null,null,null,32,null,32,null,null,null,null,null,null,null,null,null,32,null,32,null,null,null,32]
[null,33,null,33,null,33,null,33,null,null,null,33,null,33,null,null,null,null,null,null,null,null,null,33,null,33,null,null,null,33]
[null,34,null,34,null,34,null,34,null,null,null,34,null,34,null,null,null,null,null,null,null,null,null,34,null,34,null,null,null,34]
[null,35,null,35,null,35,null,35,null,null,null,35,null,35,null,null,null,null,null,null,null,null,null,35,null,35,null,null,null,35]
[null,36,null,36,null,36,null,36,null,null,null,36,null,36,null,null,null,null,null,null,null,null,null,36,null,36,null,null,null,36]
[null,37,null,37,null,37,null,37,null,null,null,37,null,37,null,null,null,null,null,null,null,null,null,37,null,37,null,null,null,37]
[null,38,null,38,null,38,null,38,null,null,null,38,null,38,null,null,null,null,null,null,null,null,null,38,null,38,null,null,null,38]
[null,39,null,39,null,39,null,39,null,null,null,39,null,39,null,null,null,null,null,null,null,null,null,39,null,39,null,null,null,39]
[null,40,null,40,null,40,null,40,null,null,null,40,null,40,null,null,null,null,null,null,null,null,null,40,null,40,null,null,null,40]
[null,41,null,41,null,41,null,41,null,null,null,41,null,41,null,null,null,null,null,null,null,null,null,41,null,41,null,null,null,41]
[null,42,null,42,null,42,null,42,null,null,null,42,null,42,null,null,null,null,null,null,null,null,null,42,null,42,null,null,null,42]
[null,43,null,43,null,43,null,43,null,null,null,43,null,43,null,null,null,null,null,null,null,null,null,43,null,43,null,null,null,43]
[null,44,null,44,null,44,null,44,null,null,null,44,null,44,null,null,null,null,null,null,null,null,null,44,null,44,null,null,null,44]
[null,45,null,45,null,45,null,45,null,null,null,45,null,45,null,null,null,null,null,null,null,null,null,45,null,45,null,null,null,45]
[null,46,null,46,null,46,null,46,null,null,null,46,null,46,null,null,null,null,null,null,null,null,null,46,null,46,null,null,null,46]
[null,47,null,47,null,47,null,47,null,null,null,47,null,47,null,null,null,null,null,null,null,null,null,47,null,47,null,null,null,47]
[null,48,null,48,null,48,null,48,null,null,null,48,null,48,null,null,null,null,null,null,null,null,null,48,null,48,null,null,null,48]
[null,49,null,49,null,49,null,49,null,null,null,49,null,49,null,null,null,null,null,null,null,null,null,49,null,49,null,null,null,49]
[null,50,null,50,null,50,null,50,null,null,null,50,null,50,null,null,null,null,null,null,null,null,null,50,null,50,null,null,null,50]
[null,51,null,51,null,51,null,51,null,null,null,51,null,51,null,null,null,null,null,null,null,null,null,51,null,51,null,null,null,51]
[null,52,null,52,null,52,null,52,null,null,null,52,null,52,null,2,null,2,"zwei",2,2,null,null,52,null,52,null,null,null,52]
[null,53,null,53,null,53,null,53,null,null,null,53,null,53,null,null,null,3,"drei",3,3,null,null,53,null,53,null,null,null,53]
[null,54,null,54,null,54,null,54,null,null,null,54,null,54,null,null,null,4,"vier",4,4,null,null,54,null,54,null,null,null,54]
[null,55,null,55,null,55,null,55,null,null,null,55,null,55,null,null,null,5,"fünf",5,5,null,null,55,null,55,null,null,null,55]
[null,56,null,56,null,56,null,56,null,null,null,56,null,56,null,null,null,6,"sechs",6,6,null,null,56,null,56,null,null,null,56]
[null,57,null,57,null,57,null,57,null,null,null,57,null,57,null,null,null,7,"sieben",7,"E",null,null,57,null,57,null,null,null,57]
[null,58,null,58,null,58,null,58,null,null,null,58,null,58,null,null,null,8,"acht",8,"A",null,null,58,null,58,null,null,null,58]
[null,59,null,59,null,59,null,59,null,null,null,59,null,59,null,null,null,9,"neun",9,null,null,null,59,null,59,null,null,null,59]
[null,60,null,60,null,60,null,60,null,null,null,60,null,60,null,null,null,10,"zehn",null,null,null,null,60,null,60,null,null,null,60]
[null,61,null,61,null,61,null,61,null,null,null,61,null,61,null,null,null,11,"elf",null,null,null,null,61,null,61,null,null,null,61]
[null,62,null,62,null,62,null,62,null,null,null,62,null,62,null,null,null,12,"zwölf",null,null,null,null,62,null,62,null,null,null,62]
[null,63,null,63,null,63,null,63,null,null,null,63,null,63,null,null,null,13,"dreizehn",null,null,null,null,63,null,63,null,null,null,63]
[null,64,null,64,null,64,null,64,null,null,null,64,null,64,null,null,null,14,"vierzehn",null,null,null,null,64,null,64,null,null,null,64]
[null,65,null,65,null,65,null,65,null,null,null,65,null,65,null,null,null,null,null,null,null,null,null,65,null,65,null,null,null,65]
[null,66,null,66,null,66,null,66,null,null,null,66,null,66,null,null,null,null,null,null,null,null,null,66,null,66,null,null,null,66]
[null,67,null,67,null,67,null,67,null,null,null,67,null,67,null,null,null,null,null,null,null,null,null,67,null,67,null,null,null,67]
[null,68,null,68,null,68,null,68,null,null,null,68,null,68,null,null,null,null,null,null,null,null,null,68,null,68,null,null,null,68]
[null,69,null,69,null,69,null,69,null,null,null,69,null,69,null,null,null,null,null,null,null,null,null,69,null,69,null,null,null,69]
[null,70,null,70,null,70,null,70,null,null,null,70,null,70,null,null,null,null,null,null,null,null,null,70,null,70,null,null,null,70]
[null,71,null,71,null,71,null,71,null,null,null,71,null,71,null,null,null,null,null,null,null,null,null,71,null,71,null,null,null,71]
[null,72,null,72,null,72,null,72,null,null,null,72,null,72,null,null,null,null,null,null,null,null,null,72,null,72,null,null,null,72]
[null,73,null,73,null,73,null,73,null,null,null,73,null,73,null,null,null,null,null,null,null,null,null,73,null,73,null,null,null,73]
[null,74,null,74,null,74,null,74,null,null,null,74,null,74,null,null,null,null,null,null,null,null,null,74,null,74,null,null,null,74]
[null,75,null,75,null,75,null,75,null,null,null,75,null,75,null,null,null,null,null,null,null,null,null,75,null,75,null,null,null,75]
[null,76,null,76,null,76,null,76,null,null,null,76,null,76,null,null,null,null,null,null,null,null,null,76,null,76,null,null,null,76]
[null,77,null,77,null,77,null,77,null,null,null,77,null,77,null,null,null,null,null,null,null,null,null,77,null,77,null,null,null,77]
[null,78,null,78,null,78,null,78,null,null,null,78,null,78,null,null,null,null,null,null,null,null,null,78,null,78,null,null,null,78]
[null,79,null,79,null,79,null,79,null,null,null,79,null,79,null,null,null,null,null,null,null,null,null,79,null,79,null,null,null,79]
[null,80,null,80,null,80,null,80,null,null,null,80,null,80,null,null,null,null,null,null,null,null,null,80,null,80,null,null,null,80]
[null,81,null,81,null,81,null,81,null,null,null,81,null,81,null,null,null,null,null,null,null,null,null,81,null,81,null,null,null,81]
[null,82,null,82,null,82,null,82,null,null,null,82,null,82,null,null,null,null,null,null,null,null,null,82,null,82,null,null,null,82]
[null,83,null,83,null,83,null,83,null,null,null,83,null,83,null,null,null,null,null,null,null,null,null,83,null,83,null,null,null,83]
[null,84,null,84,null,84,null,84,null,null,null,84,null,84,null,null,null,null,null,null,null,null,null,84,null,84,null,null,null,84]
[null,85,null,85,null,85,null,85,null,null,null,85,null,85,null,null,null,null,null,null,null,null,null,85,null,85,null,null,null,85]
[null,86,null,86,null,86,null,86,null,null,null,86,null,86,null,null,null,null,null,null,null,null,null,86,null,86,null,null,null,86]
[null,87,null,87,null,87,null,87,null,null,null,87,null,87,null,null,null,null,null,null,null,null,null,87,null,87,null,null,null,87]
[null,88,null,88,null,88,null,88,null,null,null,88,null,88,null,null,null,null,null,null,null,null,null,88,null,88,null,null,null,88]
[null,89,null,89,null,89,null,89,null,null,null,89,null,89,null,null,null,null,null,null,null,null,null,89,null,89,null,null,null,89]
[null,90,null,90,null,90,null,90,null,null,null,90,null,90,null,null,null,null,null,null,null,null,null,90,null,90,null,null,null,90]
[null,91,null,91,null,91,null,91,null,null,null,91,null,91,null,null,null,null,null,null,null,null,null,91,null,91,null,null,null,91]
[null,92,null,92,null,92,null,92,null,null,null,92,null,92,null,null,null,null,null,null,null,null,null,92,null,92,null,null,null,92]
[null,93,null,93,null,93,null,93,null,null,null,93,null,93,null,null,null,null,null,null,null,null,null,93,null,93,null,null,null,93]
[null,94,null,94,null,94,null,94,null,null,null,94,null,94,null,null,null,null,null,null,null,null,null,94,null,94,null,null,null,94]
[null,95,null,95,null,95,null,95,null,null,null,95,null,95,null,null,null,null,null,null,null,null,null,95,null,95,null,null,null,95]
[null,96,null,96,null,96,null,96,null,null,null,96,null,96,null,null,null,null,null,null,null,null,null,96,null,96,null,null,null,96]
[null,97,null,97,null,97,null,97,null,null,null,97,null,97,null,null,null,null,null,null,null,null,null,97,null,97,null,null,null,97]
[null,98,null,98,null,98,null,98,null,null,null,98,null,98,null,null,null,null,null,null,null,null,null,98,null,98,null,null,null,98]
[null,99,null,99,null,99,null,99,null,null,null,99,null,99,null,null,null,null,null,null,null,null,null,99,null,99,null,null,null,99]
[null,100,null,100,null,100,null,100,null,null,null,100,null,100]
[null,50,null,50,null,50,null,50]
[null,51,null,51,null,51,null,51]
["Gast 3",1,null,1,null,1,null,1]
[null,2,null,2,null,2,null,2]
[null,3,null,3,null,3,null,3]
[null,4,null,4,null,4,null,4]
[null,5,null,5,null,5,null,5]
[null,6,null,6,null,6,null,6]
[null,7,null,7,null,7,null,7]
[null,8,null,8,null,8,null,8]
[null,9,null,9,null,9,null,9]
[null,10,null,10,null,10,null,10]
[null,11,null,11,null,11,null,11]
[null,12,null,12,null,12,null,12]
[null,13,null,13,null,13,null,13]
[null,14,null,14,null,14,null,14]
[null,15,null,15,null,15,null,15]
[null,16,null,16,null,16,null,16]
[null,17,null,17,null,17,null,17]
[null,18,null,18,null,18,null,18]
[null,19,null,19,null,19,null,19]
[null,20,null,20,null,20,null,20]
[null,21,null,21,null,21,null,21]
[null,22,null,22,null,22,null,22]
[null,23,null,23,null,23,null,23]
[null,24,null,24,null,24,null,24]
[null,25,null,25,null,25,null,25]
[null,26,null,26,null,26,null,26]
[null,27,null,27,null,27,null,27]
[null,28,null,28,null,28,null,28]
[null,29,null,29,null,29,null,29]
[null,30,null,30,null,30,null,30]
[null,31,null,31,null,31,null,31]
[null,32,null,32,null,32,null,32]
[null,33,null,33,null,33,null,33]
[null,34,null,34,null,34,null,34]
[null,35,null,35,null,35,null,35]
[null,36,null,36,null,36,null,36]
[null,37,null,37,null,37,null,37]
[null,38,null,38,null,38,null,38]
[null,39,null,39,null,39,null,39]
[null,40,null,40,null,40,null,40]
[null,41,null,41,null,41,null,41]
[null,42,null,42,null,42,null,42]
[null,43,null,43,null,43,null,43]
[null,44,null,44,null,44,null,44]
[null,45,null,45,null,45,null,45]
[null,46,null,46,null,46,null,46]
[null,47,null,47,null,47,null,47]
[null,48,null,48,null,48,null,48]
[null,49,null,49,null,49,null,49]
[null,50,null,50,null,50,null,50]
[null,51,null,51,null,51,null,51]
["Gast 4",1,null,1,null,1,null,1]
[null,2,null,2,null,2,null,2]
[null,3,null,3,null,3,null,3]
[null,4,null,4,null,4,null,4]
[null,5,null,5,null,5,null,5]
[null,6,null,6,null,6,null,6]
[null,7,null,7,null,7,null,7]
[null,8,null,8,null,8,null,8]
[null,9,null,9,null,9,null,9]
[null,10,null,10,null,10,null,10]
[null,11,null,11,null,11,null,11]
[null,12,null,12,null,12,null,12]
[null,13,null,13,null,13,null,13]
[null,14,null,14,null,14,null,14]
[null,15,null,15,null,15,null,15]
[null,16,null,16,null,16,null,16]
[null,17,null,17,null,17,null,17]
[null,18,null,18,null,18,null,18]
[null,19,null,19,null,19,null,19]
[null,20,null,20,null,20,null,20]
[null,21,null,21,null,21,null,21]
[null,22,null,22,null,22,null,22]
[null,23,null,23,null,23,null,23]
[null,24,null,24,null,24,null,24]
[null,25,null,25,null,25,null,25]
[null,26,null,26,null,26,null,26]
[null,27,null,27,null,27,null,27]
[null,28,null,28,null,28,null,28]
[null,29,null,29,null,29,null,29]
[null,30,null,30,null,30,null,30]
[null,31,null,31,null,31,null,31]
[null,32,null,32,null,32,null,32]
[null,33,null,33,null,33,null,33]
[null,34,null,34,null,34,null,34]
[null,35,null,35,null,35,null,35]
[null,36,null,36,null,36,null,36]
[null,37,null,37,null,37,null,37]
[null,38,null,38,null,38,null,38]
[null,39,null,39,null,39,null,39]
[null,40,null,40,null,40,null,40]
[null,41,null,41,null,41,null,41]
[null,42,null,42,null,42,null,42]
[null,43,null,43,null,43,null,43]
[null,44,null,44,null,44,null,44]
[null,45,null,45,null,45,null,45]
[null,46,null,46,null,46,null,46]
[null,47,null,47,null,47,null,47]
[null,48,null,48,null,48,null,48]
[null,49,null,49,null,49,null,49]
[null,50,null,50,null,50,null,50]
[null,51,null,51,null,51,null,51]
["Gast 5",1,null,1,null,1,null,1]
[null,2,null,2,null,2,null,2,null,null,null,null,null,null,null,"Gastmannschaft 05 2","Gastmannschaft 05 3","Gastmannschaft 05 4","Gastmannschaft 05 5","Gastmannschaft 05 6","Gastmannschaft 05 7"]
[null,3,null,3,null,3,null,3]
[null,4,null,4,null,4,null,4]
[null,5,null,5,null,5,null,5]
[null,6,null,6,null,6,null,6]
[null,7,null,7,null,7,null,7]
[null,8,null,8,null,8,null,8]
[null,9,null,9,null,9,null,9]
[null,10,null,10,null,10,null,10]
[null,11,null,11,null,11,null,11]
[null,12,null,12,null,12,null,12]
[null,13,null,13,null,13,null,13]
[null,14,null,14,null,14,null,14]
[null,15,null,15,null,15,null,15]
[null,16,null,16,null,16,null,16]
[null,17,null,17,null,17,null,17]
[null,18,null,18,null,18,null,18]
[null,19,null,19,null,19,null,19]
[null,20,null,20,null,20,null,20]
[null,21,null,21,null,21,null,21]
[null,22,null,22,null,22,null,22]
[null,23,null,23,null,23,null,23]
[null,24,null,24,null,24,null,24]
[null,25,null,25,null,25,null,25]
[null,26,null,26,null,26,null,26]
[null,27,null,27,null,27,null,27]
[null,28,null,28,null,28,null,28]
[null,29,null,29,null,29,null,29]
[null,30,null,30,null,30,null,30]
[null,31,null,31,null,31,null,31]
[null,32,null,32,null,32,null,32]
[null,33,null,33,null,33,null,33]
[null,34,null,34,null,34,null,34]
[null,35,null,35,null,35,null,35]
[null,36,null,36,null,36,null,36]
[null,37,null,37,null,37,null,37]
[null,38,null,38,null,38,null,38]
[null,39,null,39,null,39,null,39]
[null,40,null,40,null,40,null,40]
[null,41,null,41,null,41,null,41]
[null,42,null,42,null,42,null,42]
[null,43,null,43,null,43,null,43]
[null,44,null,44,null,44,null,44]
[null,45,null,45,null,45,null,45]
[null,46,null,46,null,46,null,46]
[null,47,null,47,null,47,null,47]
[null,48,null,48,null,48,null,48]
[null,49,null,49,null,49,null,49]
[null,50,null,50,null,50,null,50]
[null,51,null,51,null,51,null,51]
["Gast 6",1,null,1,null,1,null,1]
[null,2,null,2,null,2,null,2]
[null,3,null,3,null,3,null,3]
[null,4,null,4,null,4,null,4]
[null,5,null,5,null,5,null,5]
[null,6,null,6,null,6,null,6]
[null,7,null,7,null,7,null,7]
[null,8,null,8,null,8,null,8]
[null,9,null,9,null,9,null,9]
[null,10,null,10,null,10,null,10]
[null,11,null,11,null,11,null,11]
[null,12,null,12,null,12,null,12]
[null,13,null,13,null,13,null,13]
[null,14,null,14,null,14,null,14]
[null,15,null,15,null,15,null,15]
[null,16,null,16,null,16,null,16]
[null,17,null,17,null,17,null,17]
[null,18,null,18,null,18,null,18]
[null,19,null,19,null,19,null,19]
[null,20,null,20,null,20,null,20]
[null,21,null,21,null,21,null,21]
[null,22,null,22,null,22,null,22]
[null,23,null,23,null,23,null,23]
[null,24,null,24,null,24,null,24]
[null,25,null,25,null,25,null,25]
[null,26,null,26,null,26,null,26]
[null,27,null,27,null,27,null,27]
[null,28,null,28,null,28,null,28]
[null,29,null,29,null,29,null,29]
[null,30,null,30,null,30,null,30]
[null,31,null,31,null,31,null,31]
[null,32,null,32,null,32,null,32]
[null,33,null,33,null,33,null,33]
[null,34,null,34,null,34,null,34]
[null,35,null,35,null,35,null,35]
[null,36,null,36,null,36,null,36]
[null,37,null,37,null,37,null,37]
[null,38,null,38,null,38,null,38]
[null,39,null,39,null,39,null,39]
[null,40,null,40,null,40,null,40]
[null,41,null,41,null,41,null,41]
[null,42,null,42,null,42,null,42]
[null,43,null,43,null,43,null,43]
[null,44,null,44,null,44,null,44]
[null,45,null,45,null,45,null,45]
[null,46,null,46,null,46,null,46]
[null,47,null,47,null,47,null,47]
[null,48,null,48,null,48,null,48]
[null,49,null,49,null,49,null,49]
[null,50,null,50,null,50,null,50]
[null,51,null,51,null,51,null,51]
["Gast 7",1,null,1,null,1,null,1]
[null,2,null,2,null,2,null,2]
[null,3,null,3,null,3,null,3]
[null,4,null,4,null,4,null,4]
[null,5,null,5,null,5,null,5]
[null,6,null,6,null,6,null,6]
[null,7,null,7,null,7,null,7]
[null,8,null,8,null,8,null,8]
[null,9,null,9,null,9,null,9]
[null,10,null,10,null,10,null,10]
[null,11,null,11,null,11,null,11]
[null,12,null,12,null,12,null,12]
[null,13,null,13,null,13,null,13]
[null,14,null,14,null,14,null,14]
[null,15,null,15,null,15,null,15]
[null,16,null,16,null,16,null,16]
[null,17,null,17,null,17,null,17]
[null,18,null,18,null,18,null,18]
[null,19,null,19,null,19,null,19]
[null,20,null,20,null,20,null,20]
[null,21,null,21,null,21,null,21]
[null,22,null,22,null,22,null,22]
[null,23,null,23,null,23,null,23]
[null,24,null,24,null,24,null,24]
[null,25,null,25,null,25,null,25]
[null,26,null,26,null,26,null,26]
[null,27,null,27,null,27,null,27]
[null,28,null,28,null,28,null,28]
[null,29,null,29,null,29,null,29]
[null,30,null,30,null,30,null,30]
[null,31,null,31,null,31,null,31]
[null,32,null,32,null,32,null,32]
[null,33,null,33,null,33,null,33]
[null,34,null,34,null,34,null,34]
[null,35,null,35,null,35,null,35]
[null,36,null,36,null,36,null,36]
[null,37,null,37,null,37,null,37]
[null,38,null,38,null,38,null,38]
[null,39,null,39,null,39,null,39]
[null,40,null,40,null,40,null,40]
[null,41,null,41,null,41,null,41]
[null,42,null,42,null,42,null,42]
[null,43,null,43,null,43,null,43]
[null,44,null,44,null,44,null,44]
[null,45,null,45,null,45,null,45]
[null,46,null,46,null,46,null,46]
[null,47,null,47,null,47,null,47]
[null,48,null,48,null,48,null,48]
[null,49,null,49,null,49,null,49]
[null,50,null,50,null,50,null,50]
[null,51,null,51,null,51,null,51]
["Gast 8",1,null,1,null,1,null,1]
[null,2,null,2,null,2,null,2]
[null,3,null,3,null,3,null,3]
[null,4,null,4,null,4,null,4]
[null,5,null,5,null,5,null,5]
[null,6,null,6,null,6,null,6]
[null,7,null,7,null,7,null,7]
[null,8,null,8,null,8,null,8]
[null,9,null,9,null,9,null,9]
[null,10,null,10,null,10,null,10]
[null,11,null,11,null,11,null,11]
[null,12,null,12,null,12,null,12]
[null,13,null,13,null,13,null,13]
[null,14,null,14,null,14,null,14]
[null,15,null,15,null,15,null,15]
[null,16,null,16,null,16,null,16]
[null,17,null,17,null,17,null,17]
[null,18,null,18,null,18,null,18]
[null,19,null,19,null,19,null,19]
[null,20,null,20,null,20,null,20]
[null,21,null,21,null,21,null,21]
[null,22,null,22,null,22,null,22]
[null,23,null,23,null,23,null,23]
[null,24,null,24,null,24,null,24]
[null,25,null,25,null,25,null,25]
[null,26,null,26,null,26,null,26]
[null,27,null,27,null,27,null,27]
[null,28,null,28,null,28,null,28]
[null,29,null,29,null,29,null,29]
[null,30,null,30,null,30,null,30]
[null,31,null,31,null,31,null,31]
[null,32,null,32,null,32,null,32]
[null,33,null,33,null,33,null,33]
[null,34,null,34,null,34,null,34]
[null,35,null,35,null,35,null,35]
[null,36,null,36,null,36,null,36]
[null,37,null,37,null,37,null,37]
[null,38,null,38,null,38,null,38]
[null,39,null,39,null,39,null,39]
[null,40,null,40,null,40,null,40]
[null,41,null,41,null,41,null,41]
[null,42,null,42,null,42,null,42]
[null,43,null,43,null,43,null,43]
[null,44,null,44,null,44,null,44]
[null,45,null,45,null,45,null,45]
[null,46,null,46,null,46,null,46]
[null,47,null,47,null,47,null,47]
[null,48,null,48,null,48,null,48]
[null,49,null,49,null,49,null,49]
[null,50,null,50,null,50,null,50]
[null,51,null,51,null,51,null,51]
["Gast 9",1,null,1,null,1,null,1]
[null,2,null,2,null,2,null,2]
[null,3,null,3,null,3,null,3]
[null,4,null,4,null,4,null,4]
[null,5,null,5,null,5,null,5]
[null,6,null,6,null,6,null,6]
[null,7,null,7,null,7,null,7]
[null,8,null,8,null,8,null,8]
[null,9,null,9,null,9,null,9]
[null,10,null,10,null,10,null,10]
[null,11,null,11,null,11,null,11]
[null,12,null,12,null,12,null,12]
[null,13,null,13,null,13,null,13]
[null,14,null,14,null,14,null,14]
[null,15,null,15,null,15,null,15]
[null,16,null,16,null,16,null,16]
[null,17,null,17,null,17,null,17]
[null,18,null,18,null,18,null,18]
[null,19,null,19,null,19,null,19]
[null,20,null,20,null,20,null,20]
[null,21,null,21,null,21,null,21]
[null,22,null,22,null,22,null,22]
[null,23,null,23,null,23,null,23]
[null,24,null,24,null,24,null,24]
[null,25,null,25,null,25,null,25]
[null,26,null,26,null,26,null,26]
[null,27,null,27,null,27,null,27]
[null,28,null,28,null,28,null,28]
[null,29,null,29,null,29,null,29]
[null,30,null,30,null,30,null,30]
[null,31,null,31,null,31,null,31]
[null,32,null,32,null,32,null,32]
[null,33,null,33,null,33,null,33]
[null,34,null,34,null,34,null,34]
[null,35,null,35,null,35,null,35]
[null,36,null,36,null,36,null,36]
[null,37,null,37,null,37,null,37]
[null,38,null,38,null,38,null,38]
[null,39,null,39,null,39,null,39]
[null,40,null,40,null,40,null,40]
[null,41,null,41,null,41,null,41]
[null,42,null,42,null,42,null,42]
[null,43,null,43,null,43,null,43]
[null,44,null,44,null,44,null,44]
[null,45,null,45,null,45,null,45]
[null,46,null,46,null,46,null,46]
[null,47,null,47,null,47,null,47]
[null,48,null,48,null,48,null,48]
[null,49,null,49,null,49,null,49]
[null,50,null,50,null,50,null,50]
[null,51,null,51,null,51,null,51]
["Gast 10",1,null,1,null,1,null,1]
[null,2,null,2,null,2,null,2]
[null,3,null,3,null,3,null,3]
[null,4,null,4,null,4,null,4]
[null,5,null,5,null,5,null,5]
[null,6,null,6,null,6,null,6]
[null,7,null,7,null,7,null,7]
[null,8,null,8,null,8,null,8]
[null,9,null,9,null,9,null,9]
[null,10,null,10,null,10,null,10]
[null,11,null,11,null,11,null,11]
[null,12,null,12,null,12,null,12]
[null,13,null,13,null,13,null,13]
[null,14,null,14,null,14,null,14]
[null,15,null,15,null,15,null,15]
[null,16,null,16,null,16,null,16]
[null,17,null,17,null,17,null,17]
[null,18,null,18,null,18,null,18]
[null,19,null,19,null,19,null,19]
[null,20,null,20,null,20,null,20]
[null,21,null,21,null,21,null,21]
[null,22,null,22,null,22,null,22]
[null,23,null,23,null,23,null,23]
[null,24,null,24,null,24,null,24]
[null,25,null,25,null,25,null,25]
[null,26,null,26,null,26,null,26]
[null,27,null,27,null,27,null,27]
[null,28,null,28,null,28,null,28]
[null,29,null,29,null,29,null,29]
[null,30,null,30,null,30,null,30]
[null,31,null,31,null,31,null,31]
[null,32,null,32,null,32,null,32]
[null,33,null,33,null,33,null,33]
[null,34,null,34,null,34,null,34]
[null,35,null,35,null,35,null,35]
[null,36,null,36,null,36,null,36]
[null,37,null,37,null,37,null,37]
[null,38,null,38,null,38,null,38]
[null,39,null,39,null,39,null,39]
[null,40,null,40,null,40,null,40]
[null,41,null,41,null,41,null,41]
[null,42,null,42,null,42,null,42]
[null,43,null,43,null,43,null,43]
[null,44,null,44,null,44,null,44]
[null,45,null,45,null,45,null,45]
[null,46,null,46,null,46,null,46]
[null,47,null,47,null,47,null,47]
[null,48,null,48,null,48,null,48]
[null,49,null,49,null,49,null,49]
[null,50,null,50,null,50,null,50]
[null,51,null,51,null,51,null,51]
["Gast 11",1,null,1,null,1,null,1]
[null,2,null,2,null,2,null,2]
[null,3,null,3,null,3,null,3]
[null,4,null,4,null,4,null,4]
[null,5,null,5,null,5,null,5]
[null,6,null,6,null,6,null,6]
[null,7,null,7,null,7,null,7]
[null,8,null,8,null,8,null,8]
[null,9,null,9,null,9,null,9]
[null,10,null,10,null,10,null,10]
[null,11,null,11,null,11,null,11]
[null,12,null,12,null,12,null,12]
[null,13,null,13,null,13,null,13]
[null,14,null,14,null,14,null,14]
[null,15,null,15,null,15,null,15]
[null,16,null,16,null,16,null,16]
[null,17,null,17,null,17,null,17]
[null,18,null,18,null,18,null,18]
[null,19,null,19,null,19,null,19]
[null,20,null,20,null,20,null,20]
[null,21,null,21,null,21,null,21]
[null,22,null,22,null,22,null,22]
[null,23,null,23,null,23,null,23]
[null,24,null,24,null,24,null,24]
[null,25,null,25,null,25,null,25]
[null,26,null,26,null,26,null,26]
[null,27,null,27,null,27,null,27]
[null,28,null,28,null,28,null,28]
[null,29,null,29,null,29,null,29]
[null,30,null,30,null,30,null,30]
[null,31,null,31,null,31,null,31]
[null,32,null,32,null,32,null,32]
[null,33,null,33,null,33,null,33]
[null,34,null,34,null,34,null,34]
[null,35,null,35,null,35,null,35]
[null,36,null,36,null,36,null,36]
[null,37,null,37,null,37,null,37]
[null,38,null,38,null,38,null,38]
[null,39,null,39,null,39,null,39]
[null,40,null,40,null,40,null,40]
[null,41,null,41,null,41,null,41]
[null,42,null,42,null,42,null,42]
[null,43,null,43,null,43,null,43]
[null,44,null,44,null,44,null,44]
[null,45,null,45,null,45,null,45]
[null,46,null,46,null,46,null,46]
[null,47,null,47,null,47,null,47]
[null,48,null,48,null,48,null,48]
[null,49,null,49,null,49,null,49]
[null,50,null,50,null,50,null,50]
[null,51,null,51,null,51,null,51]
["Gast 12",1,null,1,null,1,null,1]
[null,2,null,2,null,2,null,2]
[null,3,null,3,null,3,null,3]
[null,4,null,4,null,4,null,4]
[null,5,null,5,null,5,null,5]
[null,6,null,6,null,6,null,6]
[null,7,null,7,null,7,null,7]
[null,8,null,8,null,8,null,8]
[null,9,null,9,null,9,null,9]
[null,10,null,10,null,10,null,10]
[null,11,null,11,null,11,null,11]
[null,12,null,12,null,12,null,12]
[null,13,null,13,null,13,null,13]
[null,14,null,14,null,14,null,14]
[null,15,null,15,null,15,null,15]
[null,16,null,16,null,16,null,16]
[null,17,null,17,null,17,null,17]
[null,18,null,18,null,18,null,18]
[null,19,null,19,null,19,null,19]
[null,20,null,20,null,20,null,20]
[null,21,null,21,null,21,null,21]
[null,22,null,22,null,22,null,22]
[null,23,null,23,null,23,null,23]
[null,24,null,24,null,24,null,24]
[null,25,null,25,null,25,null,25]
[null,26,null,26,null,26,null,26]
[null,27,null,27,null,27,null,27]
[null,28,null,28,null,28,null,28]
[null,29,null,29,null,29,null,29]
[null,30,null,30,null,30,null,30]
[null,31,null,31,null,31,null,31]
[null,32,null,32,null,32,null,32]
[null,33,null,33,null,33,null,33]
[null,34,null,34,null,34,null,34]
[null,35,null,35,null,35,null,35]
[null,36,null,36,null,36,null,36]
[null,37,null,37,null,37,null,37]
[null,38,null,38,null,38,null,38]
[null,39,null,39,null,39,null,39]
[null,40,null,40,null,40,null,40]
[null,41,null,41,null,41,null,41]
[null,42,null,42,null,42,null,42]
[null,43,null,43,null,43,null,43]
[null,44,null,44,null,44,null,44]
[null,45,null,45,null,45,null,45]
[null,46,null,46,null,46,null,46]
[null,47,null,47,null,47,null,47]
[null,48,null,48,null,48,null,48]
[null,49,null,49,null,49,null,49]
[null,50,null,50,null,50,null,50]
[null,51,null,51,null,51,null,51]
["Gast 13",1,null,1,null,1,null,1]
[null,2,null,2,null,2,null,2]
[null,3,null,3,null,3,null,3]
[null,4,null,4,null,4,null,4]
[null,5,null,5,null,5,null,5]
[null,6,null,6,null,6,null,6]
[null,7,null,7,null,7,null,7]
[null,8,null,8,null,8,null,8]
[null,9,null,9,null,9,null,9]
[null,10,null,10,null,10,null,10]
[null,11,null,11,null,11,null,11]
[null,12,null,12,null,12,null,12]
[null,13,null,13,null,13,null,13]
[null,14,null,14,null,14,null,14]
[null,15,null,15,null,15,null,15]
[null,16,null,16,null,16,null,16]
[null,17,null,17,null,17,null,17]
[null,18,null,18,null,18,null,18]
[null,19,null,19,null,19,null,19]
[null,20,null,20,null,20,null,20]
[null,21,null,21,null,21,null,21]
[null,22,null,22,null,22,null,22]
[null,23,null,23,null,23,null,23]
[null,24,null,24,null,24,null,24]
[null,25,null,25,null,25,null,25]
[null,26,null,26,null,26,null,26]
[null,27,null,27,null,27,null,27]
[null,28,null,28,null,28,null,28]
[null,29,null,29,null,29,null,29]
[null,30,null,30,null,30,null,30]
[null,31,null,31,null,31,null,31]
[null,32,null,32,null,32,null,32]
[null,33,null,33,null,33,null,33]
[null,34,null,34,null,34,null,34]
[null,35,null,35,null,35,null,35]
[null,36,null,36,null,36,null,36]
[null,37,null,37,null,37,null,37]
[null,38,null,38,null,38,null,38]
[null,39,null,39,null,39,null,39]
[null,40,null,40,null,40,null,40]
[null,41,null,41,null,41,null,41]
[null,42,null,42,null,42,null,42]
[null,43,null,43,null,43,null,43]
[null,44,null,44,null,44,null,44]
[null,45,null,45,null,45,null,45]
[null,46,null,46,null,46,null,46]
[null,47,null,47,null,47,null,47]
[null,48,null,48,null,48,null,48]
[null,49,null,49,null,49,null,49]
[null,50,null,50,null,50,null,50]
[null,51,null,51,null,51,null,51]
["Gast 14",1,null,1,null,1,null,1]
[null,2,null,2,null,2,null,2]
[null,3,null,3,null,3,null,3]
[null,4,null,4,null,4,null,4]
[null,5,null,5,null,5,null,5]
[null,6,null,6,null,6,null,6]
[null,7,null,7,null,7,null,7]
[null,8,null,8,null,8,null,8]
[null,9,null,9,null,9,null,9]
[null,10,null,10,null,10,null,10]
[null,11,null,11,null,11,null,11]
[null,12,null,12,null,12,null,12]
[null,13,null,13,null,13,null,13]
[null,14,null,14,null,14,null,14]
[null,15,null,15,null,15,null,15]
[null,16,null,16,null,16,null,16]
[null,17,null,17,null,17,null,17]
[null,18,null,18,null,18,null,18]
[null,19,null,19,null,19,null,19]
[null,20,null,20,null,20,null,20]
[null,21,null,21,null,21,null,21]
[null,22,null,22,null,22,null,22]
[null,23,null,23,null,23,null,23]
[null,24,null,24,null,24,null,24]
[null,25,null,25,null,25,null,25]
[null,26,null,26,null,26,null,26]
[null,27,null,27,null,27,null,27]
[null,28,null,28,null,28,null,28]
[null,29,null,29,null,29,null,29]
[null,30,null,30,null,30,null,30]
[null,31,null,31,null,31,null,31]
[null,32,null,32,null,32,null,32]
[null,33,null,33,null,33,null,33]
[null,34,null,34,null,34,null,34]
[null,35,null,35,null,35,null,35]
[null,36,null,36,null,36,null,36]
[null,37,null,37,null,37,null,37]
[null,38,null,38,null,38,null,38]
[null,39,null,39,null,39,null,39]
[null,40,null,40,null,40,null,40]
[null,41,null,41,null,41,null,41]
[null,42,null,42,null,42,null,42]
[null,43,null,43,null,43,null,43]
[null,44,null,44,null,44,null,44]
[null,45,null,45,null,45,null,45]
[null,46,null,46,null,46,null,46]
[null,47,null,47,null,47,null,47]
[null,48,null,48,null,48,null,48]
[null,49,null,49,null,49,null,49]
[null,50,null,50,null,50,null,50]
[null,51,null,51,null,51,null,51]

{"sheet":"Beamer200W","index":13,"n_rows":19,"n_cols":22,"rows_kept":19,"cut":false,"hidden":false,"merged":[[0,0,0,8],[0,13,0,21],[0,9,0,12],[18,9,18,10],[18,11,18,12],[16,11,17,11],[16,13,17,13],[16,15,17,15],[16,17,17,17],[16,0,17,0],[14,19,15,19],[14,21,15,21],[16,19,17,19],[16,21,17,21],[16,2,17,2],[16,4,17,4],[16,6,17,6],[16,8,17,8],[16,10,17,10],[14,13,15,13],[14,0,15,0],[14,2,15,2],[14,4,15,4],[14,6,15,6],[14,17,15,17],[10,17,11,17],[10,19,11,19],[10,21,11,21],[12,0,13,0],[12,2,13,2],[12,4,13,4],[12,6,13,6],[12,8,13,8],[12,10,13,10],[12,11,13,11],[12,13,13,13],[12,15,13,15],[12,17,13,17],[12,19,13,19],[12,21,13,21],[10,0,11,0],[10,2,11,2],[10,4,11,4],[10,6,11,6],[6,17,7,17],[6,19,7,19],[6,21,7,21],[8,0,9,0],[8,2,9,2],[8,4,9,4],[8,6,9,6],[8,8,9,8],[8,10,9,10],[8,11,9,11],[8,13,9,13],[8,15,9,15],[8,17,9,17],[8,19,9,19],[8,21,9,21],[6,0,7,0],[6,2,7,2],[6,4,7,4],[6,6,7,6],[2,21,3,21],[4,0,5,0],[4,2,5,2],[4,4,5,4],[4,6,5,6],[4,8,5,8],[4,10,5,10],[4,13,5,13],[4,15,5,15],[4,17,5,17],[4,19,5,19],[4,21,5,21],[1,17,1,18],[1,19,1,20],[2,0,3,0],[2,2,3,2],[2,4,3,4],[2,6,3,6],[2,8,3,8],[2,10,3,10],[2,11,3,11],[2,15,3,15],[2,17,3,17],[2,19,3,19],[1,11,1,12],[1,13,1,14],[18,7,18,8],[1,1,1,2],[1,3,1,4],[1,5,1,6],[1,7,1,8],[1,9,1,10],[2,13,3,13],[4,11,5,11],[1,15,1,16],[6,8,7,8],[6,10,7,10],[6,11,7,11],[6,13,7,13],[6,15,7,15],[10,8,11,8],[10,10,11,10],[10,11,11,11],[10,13,11,13],[10,15,11,15],[14,8,15,8],[14,10,15,10],[14,11,15,11],[14,15,15,15]]}
[{"$f":"Einzelergebnisse!A2","v":"Heim"},null,null,null,null,null,null,null,null,{"$f":"SUM(J19-L19)","v":0},null,null,null,{"$f":"Einzelergebnisse!H2","v":"Gast 1"}]
["Spieler","Bahn 1",null,"Bahn 2",null,"Bahn 3",null,"Bahn 4",null,"Gesamt",null,"Gesamt",null,"Bahn 4",null,"Bahn 3",null,"Bahn 2",null,"Bahn 1",null,"Spieler"]
[{"$f":"Einzelergebnisse!A5","v":0},{"$f":"Einzelergebnisse!C5","v":0},{"$f":"Einzelergebnisse!F5","v":0},{"$f":"Einzelergebnisse!C6","v":0},{"$f":"Einzelergebnisse!F6","v":0},{"$f":"Einzelergebnisse!C7","v":0},{"$f":"Einzelergebnisse!F7","v":0},{"$f":"Einzelergebnisse!C8","v":0},{"$f":"Einzelergebnisse!F8","v":0},{"$f":"Einzelergebnisse!C9","v":0},{"$f":"Einzelergebnisse!F9","v":0},{"$f":"Einzelergebnisse!M9","v":0},{"$f":"Einzelergebnisse!J9","v":0},{"$f":"Einzelergebnisse!M8","v":0},{"$f":"Einzelergebnisse!J8","v":0},{"$f":"Einzelergebnisse!M7","v":0},{"$f":"Einzelergebnisse!J7","v":0},{"$f":"Einzelergebnisse!M6","v":0},{"$f":"Einzelergebnisse!J6","v":0},{"$f":"Einzelergebnisse!M5","v":0},{"$f":"Einzelergebnisse!J5","v":0},{"$f":"Einzelergebnisse!H5","v":0}]
[null,{"$f":"Einzelergebnisse!D5","v":0},null,{"$f":"Einzelergebnisse!D6","v":0},null,{"$f":"Einzelergebnisse!D7","v":0},null,{"$f":"Einzelergebnisse!D8","v":0},null,{"$f":"Einzelergebnisse!D9","v":0},null,null,{"$f":"Einzelergebnisse!K9","v":0},null,{"$f":"Einzelergebnisse!K8","v":0},null,{"$f":"Einzelergebnisse!K7","v":0},null,{"$f":"Einzelergebnisse!K6","v":0},null,{"$f":"Einzelergebnisse!K5","v":0}]
[{"$f":"Einzelergebnisse!A12","v":0},{"$f":"Einzelergebnisse!C12","v":0},{"$f":"Einzelergebnisse!F12","v":0},{"$f":"Einzelergebnisse!C13","v":0},{"$f":"Einzelergebnisse!F13","v":0},{"$f":"Einzelergebnisse!C14","v":0},{"$f":"Einzelergebnisse!F14","v":0},{"$f":"Einzelergebnisse!C15","v":0},{"$f":"Einzelergebnisse!F15","v":0},{"$f":"Einzelergebnisse!C16","v":0},{"$f":"Einzelergebnisse!F16","v":0},{"$f":"Einzelergebnisse!M16","v":0},{"$f":"Einzelergebnisse!J16","v":0},{"$f":"Einzelergebnisse!M15","v":0},{"$f":"Einzelergebnisse!J15","v":0},{"$f":"Einzelergebnisse!M14","v":0},{"$f":"Einzelergebnisse!J14","v":0},{"$f":"Einzelergebnisse!M13","v":0},{"$f":"Einzelergebnisse!J13","v":0},{"$f":"Einzelergebnisse!M12","v":0},{"$f":"Einzelergebnisse!J12","v":0},{"$f":"Einzelergebnisse!H12","v":0}]
[null,{"$f":"Einzelergebnisse!D12","v":0},null,{"$f":"Einzelergebnisse!D13","v":0},null,{"$f":"Einzelergebnisse!D14","v":0},null,{"$f":"Einzelergebnisse!D15","v":0},null,{"$f":"Einzelergebnisse!D16","v":0},null,null,{"$f":"Einzelergebnisse!K16","v":0},null,{"$f":"Einzelergebnisse!K15","v":0},null,{"$f":"Einzelergebnisse!K14","v":0},null,{"$f":"Einzelergebnisse!K13","v":0},null,{"$f":"Einzelergebnisse!K12","v":0}]
[{"$f":"Einzelergebnisse!A19","v":0},{"$f":"Einzelergebnisse!C19","v":0},{"$f":"Einzelergebnisse!F19","v":0},{"$f":"Einzelergebnisse!C20","v":0},{"$f":"Einzelergebnisse!F20","v":0},{"$f":"Einzelergebnisse!C21","v":0},{"$f":"Einzelergebnisse!F21","v":0},{"$f":"Einzelergebnisse!C22","v":0},{"$f":"Einzelergebnisse!F22","v":0},{"$f":"Einzelergebnisse!C23","v":0},{"$f":"Einzelergebnisse!F23","v":0},{"$f":"Einzelergebnisse!M23","v":0},{"$f":"Einzelergebnisse!J23","v":0},{"$f":"Einzelergebnisse!M22","v":0},{"$f":"Einzelergebnisse!J22","v":0},{"$f":"Einzelergebnisse!M21","v":0},{"$f":"Einzelergebnisse!J21","v":0},{"$f":"Einzelergebnisse!M20","v":0},{"$f":"Einzelergebnisse!J20","v":0},{"$f":"Einzelergebnisse!M19","v":0},{"$f":"Einzelergebnisse!J19","v":0},{"$f":"Einzelergebnisse!H19","v":0}]
[null,{"$f":"Einzelergebnisse!D19","v":0},null,{"$f":"Einzelergebnisse!D20","v":0},null,{"$f":"Einzelergebnisse!D21","v":0},null,{"$f":"Einzelergebnisse!D22","v":0},null,{"$f":"Einzelergebnisse!D23","v":0},null,null,{"$f":"Einzelergebnisse!K23","v":0},null,{"$f":"Einzelergebnisse!K22","v":0},null,{"$f":"Einzelergebnisse!K21","v":0},null,{"$f":"Einzelergebnisse!K20","v":0},null,{"$f":"Einzelergebnisse!K19","v":0}]
[{"$f":"Einzelergebnisse!A26","v":0},{"$f":"Einzelergebnisse!C26","v":0},{"$f":"Einzelergebnisse!F26","v":0},{"$f":"Einzelergebnisse!C27","v":0},{"$f":"Einzelergebnisse!F27","v":0},{"$f":"Einzelergebnisse!C28","v":0},{"$f":"Einzelergebnisse!F28","v":0},{"$f":"Einzelergebnisse!C29","v":0},{"$f":"Einzelergebnisse!F29","v":0},{"$f":"Einzelergebnisse!C30","v":0},{"$f":"Einzelergebnisse!F30","v":0},{"$f":"Einzelergebnisse!M30","v":0},{"$f":"Einzelergebnisse!J30","v":0},{"$f":"Einzelergebnisse!M29","v":0},{"$f":"Einzelergebnisse!J29","v":0},{"$f":"Einzelergebnisse!M28","v":0},{"$f":"Einzelergebnisse!J28","v":0},{"$f":"Einzelergebnisse!M27","v":0},{"$f":"Einzelergebnisse!J27","v":0},{"$f":"Einzelergebnisse!M26","v":0},{"$f":"Einzelergebnisse!J26","v":0},{"$f":"Einzelergebnisse!H26","v":0}]
[null,{"$f":"Einzelergebnisse!D26","v":0},null,{"$f":"Einzelergebnisse!D27","v":0},null,{"$f":"Einzelergebnisse!D28","v":0},null,{"$f":"Einzelergebnisse!D29","v":0},null,{"$f":"Einzelergebnisse!D30","v":0},null,null,{"$f":"Einzelergebnisse!K30","v":0},null,{"$f":"Einzelergebnisse!K29","v":0},null,{"$f":"Einzelergebnisse!K28","v":0},null,{"$f":"Einzelergebnisse!K27","v":0},null,{"$f":"Einzelergebnisse!K26","v":0}]
[{"$f":"Einzelergebnisse!A33","v":0},{"$f":"Einzelergebnisse!C33","v":0},{"$f":"Einzelergebnisse!F33","v":0},{"$f":"Einzelergebnisse!C34","v":0},{"$f":"Einzelergebnisse!F34","v":0},{"$f":"Einzelergebnisse!C35","v":0},{"$f":"Einzelergebnisse!F35","v":0},{"$f":"Einzelergebnisse!C36","v":0},{"$f":"Einzelergebnisse!F36","v":0},{"$f":"Einzelergebnisse!C37","v":0},{"$f":"Einzelergebnisse!F37","v":0},{"$f":"Einzelergebnisse!M37","v":0},{"$f":"Einzelergebnisse!J37","v":0},{"$f":"Einzelergebnisse!M36","v":0},{"$f":"Einzelergebnisse!J36","v":0},{"$f":"Einzelergebnisse!M35","v":0},{"$f":"Einzelergebnisse!J35","v":0},{"$f":"Einzelergebnisse!M34","v":0},{"$f":"Einzelergebnisse!J34","v":0},{"$f":"Einzelergebnisse!M33","v":0},{"$f":"Einzelergebnisse!J33","v":0},{"$f":"Einzelergebnisse!H33","v":0}]
[null,{"$f":"Einzelergebnisse!D33","v":0},null,{"$f":"Einzelergebnisse!D34","v":0},null,{"$f":"Einzelergebnisse!D35","v":0},null,{"$f":"Einzelergebnisse!D36","v":0},null,{"$f":"Einzelergebnisse!D37","v":0},null,null,{"$f":"Einzelergebnisse!K37","v":0},null,{"$f":"Einzelergebnisse!K36","v":0},null,{"$f":"Einzelergebnisse!K35","v":0},null,{"$f":"Einzelergebnisse!K34","v":0},null,{"$f":"Einzelergebnisse!K33","v":0}]
[{"$f":"Einzelergebnisse!A40","v":0},{"$f":"Einzelergebnisse!C40","v":0},{"$f":"Einzelergebnisse!F40","v":0},{"$f":"Einzelergebnisse!C41","v":0},{"$f":"Einzelergebnisse!F41","v":0},{"$f":"Einzelergebnisse!C42","v":0},{"$f":"Einzelergebnisse!F42","v":0},{"$f":"Einzelergebnisse!C43","v":0},{"$f":"Einzelergebnisse!F43","v":0},{"$f":"Einzelergebnisse!C44","v":0},{"$f":"Einzelergebnisse!F44","v":0},{"$f":"Einzelergebnisse!M44","v":0},{"$f":"Einzelergebnisse!J44","v":0},{"$f":"Einzelergebnisse!M43","v":0},{"$f":"Einzelergebnisse!J43","v":0},{"$f":"Einzelergebnisse!M42","v":0},{"$f":"Einzelergebnisse!J42","v":0},{"$f":"Einzelergebnisse!M41","v":0},{"$f":"Einzelergebnisse!J41","v":0},{"$f":"Einzelergebnisse!M40","v":0},{"$f":"Einzelergebnisse!J40","v":0},{"$f":"Einzelergebnisse!H40","v":0}]
[null,{"$f":"Einzelergebnisse!D40","v":0},null,{"$f":"Einzelergebnisse!D41","v":0},null,{"$f":"Einzelergebnisse!D42","v":0},null,{"$f":"Einzelergebnisse!D43","v":0},null,{"$f":"Einzelergebnisse!D44","v":0},null,null,{"$f":"Einzelergebnisse!K44","v":0},null,{"$f":"Einzelergebnisse!K43","v":0},null,{"$f":"Einzelergebnisse!K42","v":0},null,{"$f":"Einzelergebnisse!K41","v":0},null,{"$f":"Einzelergebnisse!K40","v":0}]
[{"$f":"Einzelergebnisse!A47","v":0},{"$f":"Einzelergebnisse!C47","v":0},{"$f":"Einzelergebnisse!F47","v":0},{"$f":"Einzelergebnisse!C48","v":0},{"$f":"Einzelergebnisse!F48","v":0},{"$f":"Einzelergebnisse!C49","v":0},{"$f":"Einzelergebnisse!F49","v":0},{"$f":"Einzelergebnisse!C50","v":0},{"$f":"Einzelergebnisse!F50","v":0},{"$f":"Einzelergebnisse!C51","v":0},{"$f":"Einzelergebnisse!F51","v":0},{"$f":"Einzelergebnisse!M51","v":0},{"$f":"Einzelergebnisse!J51","v":0},{"$f":"Einzelergebnisse!M50","v":0},{"$f":"Einzelergebnisse!J50","v":0},{"$f":"Einzelergebnisse!M49","v":0},{"$f":"Einzelergebnisse!J49","v":0},{"$f":"Einzelergebnisse!M48","v":0},{"$f":"Einzelergebnisse!J48","v":0},{"$f":"Einzelergebnisse!M47","v":0},{"$f":"Einzelergebnisse!J47","v":0},{"$f":"Einzelergebnisse!H47","v":0}]
[null,{"$f":"Einzelergebnisse!D47","v":0},null,{"$f":"Einzelergebnisse!D48","v":0},null,{"$f":"Einzelergebnisse!D49","v":0},null,{"$f":"Einzelergebnisse!D50","v":0},null,{"$f":"Einzelergebnisse!D51","v":0},null,null,{"$f":"Einzelergebnisse!K51","v":0},null,{"$f":"Einzelergebnisse!K50","v":0},null,{"$f":"Einzelergebnisse!K49","v":0},null,{"$f":"Einzelergebnisse!K48","v":0},null,{"$f":"Einzelergebnisse!K47","v":0}]
[{"$f":"Einzelergebnisse!A54","v":0},{"$f":"Einzelergebnisse!C54","v":0},{"$f":"Einzelergebnisse!F54","v":0},{"$f":"Einzelergebnisse!C55","v":0},{"$f":"Einzelergebnisse!F55","v":0},{"$f":"Einzelergebnisse!C56","v":0},{"$f":"Einzelergebnisse!F56","v":0},{"$f":"Einzelergebnisse!C57","v":0},{"$f":"Einzelergebnisse!F57","v":0},{"$f":"Einzelergebnisse!C58","v":0},{"$f":"Einzelergebnisse!F58","v":0},{"$f":"Einzelergebnisse!M58","v":0},{"$f":"Einzelergebnisse!J58","v":0},{"$f":"Einzelergebnisse!M57","v":0},{"$f":"Einzelergebnisse!J57","v":0},{"$f":"Einzelergebnisse!M56","v":0},{"$f":"Einzelergebnisse!J56","v":0},{"$f":"Einzelergebnisse!M55","v":0},{"$f":"Einzelergebnisse!J55","v":0},{"$f":"Einzelergebnisse!M54","v":0},{"$f":"Einzelergebnisse!J54","v":0},{"$f":"Einzelergebnisse!H54","v":0}]
[null,{"$f":"Einzelergebnisse!D54","v":0},null,{"$f":"Einzelergebnisse!D55","v":0},null,{"$f":"Einzelergebnisse!D56","v":0},null,{"$f":"Einzelergebnisse!D57","v":0},null,{"$f":"Einzelergebnisse!D58","v":0},null,null,{"$f":"Einzelergebnisse!K58","v":0},null,{"$f":"Einzelergebnisse!K57","v":0},null,{"$f":"Einzelergebnisse!K56","v":0},null,{"$f":"Einzelergebnisse!K55","v":0},null,{"$f":"Einzelergebnisse!K54","v":0}]
[null,null,null,null,null,null,null,null,null,{"$f":"SUM(K3:K17)","v":0},null,{"$f":"SUM(L3:L17)","v":0}]

{"sheet":"Tabelle1","index":15,"n_rows":0,"n_cols":0,"rows_kept":0,"cut":false,"hidden":true,"merged":[]}

{"sheet":"Beamer100W","index":16,"n_rows":19,"n_cols":22,"rows_kept":19,"cut":false,"hidden":false,"merged":[[18,7,18,8],[18,9,18,10],[18,11,18,12],[16,10,17,10],[16,11,17,11],[16,13,17,13],[16,15,17,15],[16,17,17,17],[16,19,17,19],[14,17,15,17],[14,19,15,19],[14,21,15,21],[16,0,17,0],[16,2,17,2],[16,4,17,4],[16,6,17,6],[16,8,17,8],[16,21,17,21],[14,0,15,0],[14,2,15,2],[14,4,15,4],[14,6,15,6],[14,8,15,8],[14,10,15,10],[14,11,15,11],[14,13,15,13],[14,15,15,15],[10,17,11,17],[10,19,11,19],[10,21,11,21],[12,0,13,0],[12,2,13,2],[12,4,13,4],[12,6,13,6],[12,8,13,8],[12,10,13,10],[12,11,13,11],[12,13,13,13],[12,15,13,15],[12,17,13,17],[12,19,13,19],[12,21,13,21],[10,0,11,0],[10,2,11,2],[10,4,11,4],[10,6,11,6],[10,8,11,8],[10,10,11,10],[10,11,11,11],[10,13,11,13],[10,15,11,15],[6,17,7,17],[6,19,7,19],[6,21,7,21],[8,0,9,0],[8,2,9,2],[8,4,9,4],[8,6,9,6],[8,8,9,8],[8,10,9,10],[8,11,9,11],[8,13,9,13],[8,15,9,15],[8,17,9,17],[8,19,9,19],[8,21,9,21],[6,0,7,0],[6,2,7,2],[6,4,7,4],[6,6,7,6],[6,8,7,8],[6,10,7,10],[6,11,7,11],[6,13,7,13],[6,15,7,15],[2,17,3,17],[2,19,3,19],[2,21,3,21],[4,0,5,0],[4,2,5,2],[4,4,5,4],[4,6,5,6],[4,8,5,8],[4,10,5,10],[4,11,5,11],[4,13,5,13],[4,15,5,15],[4,17,5,17],[4,19,5,19],[4,21,5,21],[2,0,3,0],[2,2,3,2],[2,4,3,4],[2,6,3,6],[2,8,3,8],[2,10,3,10],[2,11,3,11],[2,13,3,13],[2,15,3,15],[0,0,0,8],[0,9,0,12],[0,13,0,21],[1,1,1,2],[1,3,1,4],[1,5,1,6],[1,7,1,8],[1,9,1,10],[1,11,1,12],[1,13,1,14],[1,15,1,16],[1,17,1,18],[1,19,1,20]]}
[{"$f":"Einzelergebnisse!A2","v":"Heim"},null,null,null,null,null,null,null,null,{"$f":"SUM(J19-L19)","v":0},null,null,null,{"$f":"Einzelergebnisse!H2","v":"Gast 1"}]
["Spieler","Bahn 1",null,"Bahn 2",null,"Bahn 3",null,"Bahn 4",null,"Gesamt",null,"Gesamt",null,"Bahn 4",null,"Bahn 3",null,"Bahn 2",null,"Bahn 1",null,"Spieler"]
[{"$f":"Einzelergebnisse!A5","v":0},{"$f":"Einzelergebnisse!C5","v":0},{"$f":"Einzelergebnisse!F5","v":0},{"$f":"Einzelergebnisse!C6","v":0},{"$f":"Einzelergebnisse!F6","v":0},{"$f":"Einzelergebnisse!C7","v":0},{"$f":"Einzelergebnisse!F7","v":0},{"$f":"Einzelergebnisse!C8","v":0},{"$f":"Einzelergebnisse!F8","v":0},{"$f":"Einzelergebnisse!C9","v":0},{"$f":"Einzelergebnisse!F9","v":0},{"$f":"Einzelergebnisse!M9","v":0},{"$f":"Einzelergebnisse!J9","v":0},{"$f":"Einzelergebnisse!M8","v":0},{"$f":"Einzelergebnisse!J8","v":0},{"$f":"Einzelergebnisse!M7","v":0},{"$f":"Einzelergebnisse!J7","v":0},{"$f":"Einzelergebnisse!M6","v":0},{"$f":"Einzelergebnisse!J6","v":0},{"$f":"Einzelergebnisse!M5","v":0},{"$f":"Einzelergebnisse!J5","v":0},{"$f":"Einzelergebnisse!H5","v":0}]
[null,{"$f":"Einzelergebnisse!D5","v":0},null,{"$f":"Einzelergebnisse!D6","v":0},null,{"$f":"Einzelergebnisse!D7","v":0},null,{"$f":"Einzelergebnisse!D8","v":0},null,{"$f":"Einzelergebnisse!D9","v":0},null,null,{"$f":"Einzelergebnisse!K9","v":0},null,{"$f":"Einzelergebnisse!K8","v":0},null,{"$f":"Einzelergebnisse!K7","v":0},null,{"$f":"Einzelergebnisse!K6","v":0},null,{"$f":"Einzelergebnisse!K5","v":0}]
[{"$f":"Einzelergebnisse!A12","v":0},{"$f":"Einzelergebnisse!C12","v":0},{"$f":"Einzelergebnisse!F12","v":0},{"$f":"Einzelergebnisse!C13","v":0},{"$f":"Einzelergebnisse!F13","v":0},{"$f":"Einzelergebnisse!C14","v":0},{"$f":"Einzelergebnisse!F14","v":0},{"$f":"Einzelergebnisse!C15","v":0},{"$f":"Einzelergebnisse!F15","v":0},{"$f":"Einzelergebnisse!C16","v":0},{"$f":"Einzelergebnisse!F16","v":0},{"$f":"Einzelergebnisse!M16","v":0},{"$f":"Einzelergebnisse!J16","v":0},{"$f":"Einzelergebnisse!M15","v":0},{"$f":"Einzelergebnisse!J15","v":0},{"$f":"Einzelergebnisse!M14","v":0},{"$f":"Einzelergebnisse!J14","v":0},{"$f":"Einzelergebnisse!M13","v":0},{"$f":"Einzelergebnisse!J13","v":0},{"$f":"Einzelergebnisse!M12","v":0},{"$f":"Einzelergebnisse!J12","v":0},{"$f":"Einzelergebnisse!H12","v":0}]
[null,{"$f":"Einzelergebnisse!D12","v":0},null,{"$f":"Einzelergebnisse!D13","v":0},null,{"$f":"Einzelergebnisse!D14","v":0},null,{"$f":"Einzelergebnisse!D15","v":0},null,{"$f":"Einzelergebnisse!D16","v":0},null,null,{"$f":"Einzelergebnisse!K16","v":0},null,{"$f":"Einzelergebnisse!K15","v":0},null,{"$f":"Einzelergebnisse!K14","v":0},null,{"$f":"Einzelergebnisse!K13","v":0},null,{"$f":"Einzelergebnisse!K12","v":0}]
[{"$f":"Einzelergebnisse!A19","v":0},{"$f":"Einzelergebnisse!C19","v":0},{"$f":"Einzelergebnisse!F19","v":0},{"$f":"Einzelergebnisse!C20","v":0},{"$f":"Einzelergebnisse!F20","v":0},{"$f":"Einzelergebnisse!C21","v":0},{"$f":"Einzelergebnisse!F21","v":0},{"$f":"Einzelergebnisse!C22","v":0},{"$f":"Einzelergebnisse!F22","v":0},{"$f":"Einzelergebnisse!C23","v":0},{"$f":"Einzelergebnisse!F23","v":0},{"$f":"Einzelergebnisse!M23","v":0},{"$f":"Einzelergebnisse!J23","v":0},{"$f":"Einzelergebnisse!M22","v":0},{"$f":"Einzelergebnisse!J22","v":0},{"$f":"Einzelergebnisse!M21","v":0},{"$f":"Einzelergebnisse!J21","v":0},{"$f":"Einzelergebnisse!M20","v":0},{"$f":"Einzelergebnisse!J20","v":0},{"$f":"Einzelergebnisse!M19","v":0},{"$f":"Einzelergebnisse!J19","v":0},{"$f":"Einzelergebnisse!H19","v":0}]
[null,{"$f":"Einzelergebnisse!D19","v":0},null,{"$f":"Einzelergebnisse!D20","v":0},null,{"$f":"Einzelergebnisse!D21","v":0},null,{"$f":"Einzelergebnisse!D22","v":0},null,{"$f":"Einzelergebnisse!D23","v":0},null,null,{"$f":"Einzelergebnisse!K23","v":0},null,{"$f":"Einzelergebnisse!K22","v":0},null,{"$f":"Einzelergebnisse!K21","v":0},null,{"$f":"Einzelergebnisse!K20","v":0},null,{"$f":"Einzelergebnisse!K19","v":0}]
[{"$f":"Einzelergebnisse!A26","v":0},{"$f":"Einzelergebnisse!C26","v":0},{"$f":"Einzelergebnisse!F26","v":0},{"$f":"Einzelergebnisse!C27","v":0},{"$f":"Einzelergebnisse!F27","v":0},{"$f":"Einzelergebnisse!C28","v":0},{"$f":"Einzelergebnisse!F28","v":0},{"$f":"Einzelergebnisse!C29","v":0},{"$f":"Einzelergebnisse!F29","v":0},{"$f":"Einzelergebnisse!C30","v":0},{"$f":"Einzelergebnisse!F30","v":0},{"$f":"Einzelergebnisse!M30","v":0},{"$f":"Einzelergebnisse!J30","v":0},{"$f":"Einzelergebnisse!M29","v":0},{"$f":"Einzelergebnisse!J29","v":0},{"$f":"Einzelergebnisse!M28","v":0},{"$f":"Einzelergebnisse!J28","v":0},{"$f":"Einzelergebnisse!M27","v":0},{"$f":"Einzelergebnisse!J27","v":0},{"$f":"Einzelergebnisse!M26","v":0},{"$f":"Einzelergebnisse!J26","v":0},{"$f":"Einzelergebnisse!H26","v":0}]
[null,{"$f":"Einzelergebnisse!D26","v":0},null,{"$f":"Einzelergebnisse!D27","v":0},null,{"$f":"Einzelergebnisse!D28","v":0},null,{"$f":"Einzelergebnisse!D29","v":0},null,{"$f":"Einzelergebnisse!D30","v":0},null,null,{"$f":"Einzelergebnisse!K30","v":0},null,{"$f":"Einzelergebnisse!K29","v":0},null,{"$f":"Einzelergebnisse!K28","v":0},null,{"$f":"Einzelergebnisse!K27","v":0},null,{"$f":"Einzelergebnisse!K26","v":0}]
[{"$f":"Einzelergebnisse!A33","v":0},{"$f":"Einzelergebnisse!C33","v":0},{"$f":"Einzelergebnisse!F33","v":0},{"$f":"Einzelergebnisse!C34","v":0},{"$f":"Einzelergebnisse!F34","v":0},{"$f":"Einzelergebnisse!C35","v":0},{"$f":"Einzelergebnisse!F35","v":0},{"$f":"Einzelergebnisse!C36","v":0},{"$f":"Einzelergebnisse!F36","v":0},{"$f":"Einzelergebnisse!C37","v":0},{"$f":"Einzelergebnisse!F37","v":0},{"$f":"Einzelergebnisse!M37","v":0},{"$f":"Einzelergebnisse!J37","v":0},{"$f":"Einzelergebnisse!M36","v":0},{"$f":"Einzelergebnisse!J36","v":0},{"$f":"Einzelergebnisse!M35","v":0},{"$f":"Einzelergebnisse!J35","v":0},{"$f":"Einzelergebnisse!M34","v":0},{"$f":"Einzelergebnisse!J34","v":0},{"$f":"Einzelergebnisse!M33","v":0},{"$f":"Einzelergebnisse!J33","v":0},{"$f":"Einzelergebnisse!H33","v":0}]
[null,{"$f":"Einzelergebnisse!D33","v":0},null,{"$f":"Einzelergebnisse!D34","v":0},null,{"$f":"Einzelergebnisse!D35","v":0},null,{"$f":"Einzelergebnisse!D36","v":0},null,{"$f":"Einzelergebnisse!D37","v":0},null,null,{"$f":"Einzelergebnisse!K37","v":0},null,{"$f":"Einzelergebnisse!K36","v":0},null,{"$f":"Einzelergebnisse!K35","v":0},null,{"$f":"Einzelergebnisse!K34","v":0},null,{"$f":"Einzelergebnisse!K33","v":0}]
[{"$f":"Einzelergebnisse!A40","v":0},{"$f":"Einzelergebnisse!C40","v":0},{"$f":"Einzelergebnisse!F40","v":0},{"$f":"Einzelergebnisse!C41","v":0},{"$f":"Einzelergebnisse!F41","v":0},{"$f":"Einzelergebnisse!C42","v":0},{"$f":"Einzelergebnisse!F42","v":0},{"$f":"Einzelergebnisse!C43","v":0},{"$f":"Einzelergebnisse!F43","v":0},{"$f":"Einzelergebnisse!C44","v":0},{"$f":"Einzelergebnisse!F44","v":0},{"$f":"Einzelergebnisse!M44","v":0},{"$f":"Einzelergebnisse!J44","v":0},{"$f":"Einzelergebnisse!M43","v":0},{"$f":"Einzelergebnisse!J43","v":0},{"$f":"Einzelergebnisse!M42","v":0},{"$f":"Einzelergebnisse!J42","v":0},{"$f":"Einzelergebnisse!M41","v":0},{"$f":"Einzelergebnisse!J41","v":0},{"$f":"Einzelergebnisse!M40","v":0},{"$f":"Einzelergebnisse!J40","v":0},{"$f":"Einzelergebnisse!H40","v":0}]
[null,{"$f":"Einzelergebnisse!D40","v":0},null,{"$f":"Einzelergebnisse!D41","v":0},null,{"$f":"Einzelergebnisse!D42","v":0},null,{"$f":"Einzelergebnisse!D43","v":0},null,{"$f":"Einzelergebnisse!D44","v":0},null,null,{"$f":"Einzelergebnisse!K44","v":0},null,{"$f":"Einzelergebnisse!K43","v":0},null,{"$f":"Einzelergebnisse!K42","v":0},null,{"$f":"Einzelergebnisse!K41","v":0},null,{"$f":"Einzelergebnisse!K40","v":0}]
[{"$f":"Einzelergebnisse!A47","v":0},{"$f":"Einzelergebnisse!C47","v":0},{"$f":"Einzelergebnisse!F47","v":0},{"$f":"Einzelergebnisse!C48","v":0},{"$f":"Einzelergebnisse!F48","v":0},{"$f":"Einzelergebnisse!C49","v":0},{"$f":"Einzelergebnisse!F49","v":0},{"$f":"Einzelergebnisse!C50","v":0},{"$f":"Einzelergebnisse!F50","v":0},{"$f":"Einzelergebnisse!C51","v":0},{"$f":"Einzelergebnisse!F51","v":0},{"$f":"Einzelergebnisse!M51","v":0},{"$f":"Einzelergebnisse!J51","v":0},{"$f":"Einzelergebnisse!M50","v":0},{"$f":"Einzelergebnisse!J50","v":0},{"$f":"Einzelergebnisse!M49","v":0},{"$f":"Einzelergebnisse!J49","v":0},{"$f":"Einzelergebnisse!M48","v":0},{"$f":"Einzelergebnisse!J48","v":0},{"$f":"Einzelergebnisse!M47","v":0},{"$f":"Einzelergebnisse!J47","v":0},{"$f":"Einzelergebnisse!H47","v":0}]
[null,{"$f":"Einzelergebnisse!D47","v":0},null,{"$f":"Einzelergebnisse!D48","v":0},null,{"$f":"Einzelergebnisse!D49","v":0},null,{"$f":"Einzelergebnisse!D50","v":0},null,{"$f":"Einzelergebnisse!D51","v":0},null,null,{"$f":"Einzelergebnisse!K51","v":0},null,{"$f":"Einzelergebnisse!K50","v":0},null,{"$f":"Einzelergebnisse!K49","v":0},null,{"$f":"Einzelergebnisse!K48","v":0},null,{"$f":"Einzelergebnisse!K47","v":0}]
[{"$f":"Einzelergebnisse!A54","v":0},{"$f":"Einzelergebnisse!C54","v":0},{"$f":"Einzelergebnisse!F54","v":0},{"$f":"Einzelergebnisse!C55","v":0},{"$f":"Einzelergebnisse!F55","v":0},{"$f":"Einzelergebnisse!C56","v":0},{"$f":"Einzelergebnisse!F56","v":0},{"$f":"Einzelergebnisse!C57","v":0},{"$f":"Einzelergebnisse!F57","v":0},{"$f":"Einzelergebnisse!C58","v":0},{"$f":"Einzelergebnisse!F58","v":0},{"$f":"Einzelergebnisse!M58","v":0},{"$f":"Einzelergebnisse!J58","v":0},{"$f":"Einzelergebnisse!M57","v":0},{"$f":"Einzelergebnisse!J57","v":0},{"$f":"Einzelergebnisse!M56","v":0},{"$f":"Einzelergebnisse!J56","v":0},{"$f":"Einzelergebnisse!M55","v":0},{"$f":"Einzelergebnisse!J55","v":0},{"$f":"Einzelergebnisse!M54","v":0},{"$f":"Einzelergebnisse!J54","v":0},{"$f":"Einzelergebnisse!H54","v":0}]
[null,{"$f":"Einzelergebnisse!D54","v":0},null,{"$f":"Einzelergebnisse!D55","v":0},null,{"$f":"Einzelergebnisse!D56","v":0},null,{"$f":"Einzelergebnisse!D57","v":0},null,{"$f":"Einzelergebnisse!D58","v":0},null,null,{"$f":"Einzelergebnisse!K58","v":0},null,{"$f":"Einzelergebnisse!K57","v":0},null,{"$f":"Einzelergebnisse!K56","v":0},null,{"$f":"Einzelergebnisse!K55","v":0},null,{"$f":"Einzelergebnisse!K54","v":0}]
[null,null,null,null,null,null,null,null,null,{"$f":"SUM(K3:K17)","v":0},null,{"$f":"SUM(L3:L17)","v":0}]

{"sheet":"Logo","index":17,"n_rows":19,"n_cols":8,"rows_kept":19,"cut":false,"hidden":true,"merged":[]}
[]
[]
[]
[]
[]
[]
[]
[]
[]
[null,null,"Ligaleitung:   Bernd Strauch,\nTel. 06221-765307 / Fax 03222-1509867\nligaleitung@dcu-ev.de"]
[null,null,"BKBV\nLigaleitung: Fachwart Rolf Elshoff\neMail ligaleitung@bkbv.de","Bezirk 1 im BKBV\nLigaleitung: Roland Wälde,\nFax 03212/2528252\neMail spielleiter@bezirk1-bkbv.de","Bezirk 2 im BKBV\nLigaleitung: Thomas Schränkler\nTel. 0170/5228096\neMail Bezirk2imbkbv@aol.com","Bezirk 3 im BKBV\nLigaleitung: Bernd Strauch\nTel. 06221/765307\neMail ligaleitung.bezirk3@web.de","Bezirk 4","Bezirk 5 im BKBV\nLigaleitung: Alfred Arnold\nTel:06201/45197, Fax:032 223 706 349\neMail_alf.arnold@t-online.de"]
[null,null,"Ligaleitung Hessen"]
[null,null,"Rheinhessen-Pfalz\nLigaleitung: Philipp Braun\nFax: Fax: 07272 - 8096 \neMail: philipp.braun96@t-online.de"]
[null,null,"Ligaleitung TH: Holger Wiefel\nTel.: 036021-84860, \nFax 0911-3084473379\nthueringen@dcu-ev.de"]
[null,null,"Ligaleitung SB"]
[null,null,"Ligaleitung:\nPhilipp Jestädt\nTel./Fax.: 09723-9053320\neMail: pd.jestaedt@gmail.com"]
[null,null,"Ligaleitung BYS"]
[null,null,"Ligaleitung NI"]
[null,null,"Ligaleitung:\nMario Trenkler"]

{"sheet":"übertrag","index":18,"n_rows":94,"n_cols":33,"rows_kept":94,"cut":false,"hidden":false,"merged":[[0,16,0,17]]}
[null,null,null,null,null,null,null,null,null,null,"Spieler 1 - 6","Spieler 7 - 12","geb.jahr 1 - 6","geb.jahr 7 - 12 - 6","paß.Nr 1 - 6","paß.Nr 7 - 12","Eingane der Kreuze",null,null,null,null,"Gastmannschaft",null,"Heim",null,null,null,null,null,null,null,"Spieltag"]
[13,9,9,13,null,4,null,1,4,null,{"$f":"IF(übertrag!$H$2=1,VLOOKUP(übertrag!I2,einsü,2,),IF($H$2=2,VLOOKUP(übertrag!I2,zweiü,2,),IF($H$2=3,VLOOKUP(übertrag!I2,dreiü,2,),IF($H$2=4,VLOOKUP(übertrag!I2,vierü,2,),IF($H$2=5,VLOOKUP(übertrag!I2,fünfü,2,),IF($H$2=6,VLOOKUP(übertrag!I2,sechsü,2,),IF(übertrag!$H$2=7,VLOOKUP(übertrag!I2,siebenü,2,), \"\")))))))","v":0},{"$f":"IF($H$2=8,VLOOKUP(übertrag!I2,achtü,2,),IF($H$2=9,VLOOKUP(übertrag!I2,neunü,2,),IF($H$2=10,VLOOKUP(übertrag!I2,zehnü,2,),IF($H$2=11,VLOOKUP(übertrag!I2,elfü,2,),IF($H$2=12,VLOOKUP(übertrag!I2,zwoelfü,2,),IF($H$2=13,VLOOKUP(übertrag!I2,dreizehnü,2,),IF($H$2=14,VLOOKUP(übertrag!I2,vierzehnü,2,),\"\")))))))","v":""},{"$f":"IF(übertrag!$H$2=1,VLOOKUP(übertrag!I2,_jhg1,2,),IF($H$2=2,VLOOKUP(übertrag!I2,_jhg2,2,),IF($H$2=3,VLOOKUP(übertrag!I2,_jhg3,2,),IF($H$2=4,VLOOKUP(übertrag!I2,_jhg4,2,),IF($H$2=5,VLOOKUP(übertrag!I2,_jhg5,2,),IF($H$2=6,VLOOKUP(übertrag!I2,_jhg6,2,),IF(übertrag!$H$2=7,VLOOKUP(übertrag!I2,_jhg7,2,),\"\")))))))","v":0},{"$f":"IF($H$2=8,VLOOKUP(übertrag!I2,_jhg8,2,),IF($H$2=9,VLOOKUP(übertrag!I2,_jhg9,2,),IF($H$2=10,VLOOKUP(übertrag!I2,_jhg10,2,),IF($H$2=11,VLOOKUP(übertrag!I2,_jhg11,2,),IF($H$2=12,VLOOKUP(übertrag!I2,_jhg12,2,),IF(übertrag!$H$2=13,VLOOKUP(übertrag!I2,_jhg13,2,),IF(übertrag!$H$2=14,VLOOKUP(übertrag!I2,_jhg14,2,),\"\")))))))","v":""},{"$f":"IF(übertrag!$H$2=1,VLOOKUP(übertrag!I2,paß1a,übertrag!O30+1,),IF($H$2=2,VLOOKUP(übertrag!I2,paß2a,übertrag!O30+1,),IF($H$2=3,VLOOKUP(übertrag!I2,paß3a,übertrag!O30+1,),IF($H$2=4,VLOOKUP(übertrag!I2,paß4a,übertrag!O30+1,),IF($H$2=5,VLOOKUP(übertrag!I2,paß5a,übertrag!O30+1,),IF($H$2=6,VLOOKUP(übertrag!I2,paß6a,übertrag!O30+1,),IF(übertrag!$H$2=7,VLOOKUP(übertrag!I2,paß7a,übertrag!O30+1,),\"\")))))))","v":0},{"$f":"IF($H$2=8,VLOOKUP(übertrag!I2,paß8a,übertrag!O30+1,),IF($H$2=9,VLOOKUP(übertrag!I2,paß9a,übertrag!O30+1,),IF($H$2=10,VLOOKUP(übertrag!I2,paß10a,übertrag!O30+1,),IF($H$2=11,VLOOKUP(übertrag!I2,paß11a,übertrag!O30+1,),IF($H$2=12,VLOOKUP(übertrag!I2,paß12a,übertrag!O30+1,),IF($H$2=13,VLOOKUP(übertrag!I2,paß13a,übertrag!O30+1,),IF($H$2=14,VLOOKUP(übertrag!I2,paß14a,übertrag!O30+1,),\"\")))))))","v":""},true,false,null,null,1,{"$f":"'MANNSCHAFTEN+SPIELER'!A3","v":"Gast 1"},null,null,1,{"$f":"IF(I16,VLOOKUP(übertrag!I16,Heimü,2,),\"\")","v":0},null,{"$f":"Z2 &AB18&O16&AB19","v":"0 (0)"},{"$f":"IF(K2=\"\",L2&AB18&P2&AB19,K2&AB18&O2&AB19)","v":"0 (0)"},{"$f":"IF(K2=\"\",L2&AB18&P16&AB19,K2&AB18&P16&AB19)","v":"0 ()"},1,1,1]
[13,1,null,13,null,null,null,null,13,null,{"$f":"IF(übertrag!$H$2=1,VLOOKUP(übertrag!I3,einsü,2,),IF($H$2=2,VLOOKUP(übertrag!I3,zweiü,2,),IF($H$2=3,VLOOKUP(übertrag!I3,dreiü,2,),IF($H$2=4,VLOOKUP(übertrag!I3,vierü,2,),IF($H$2=5,VLOOKUP(übertrag!I3,fünfü,2,),IF($H$2=6,VLOOKUP(übertrag!I3,sechsü,2,),IF($H$2=7,VLOOKUP(übertrag!I3,siebenü,2,),\"\")))))))","v":0},{"$f":"IF($H$2=8,VLOOKUP(übertrag!I3,achtü,2,),IF($H$2=9,VLOOKUP(übertrag!I3,neunü,2,),IF($H$2=10,VLOOKUP(übertrag!I3,zehnü,2,),IF($H$2=11,VLOOKUP(übertrag!I3,elfü,2,),IF($H$2=12,VLOOKUP(übertrag!I3,zwoelfü,2,),IF($H$2=13,VLOOKUP(übertrag!I3,dreizehnü,2,),IF($H$2=14,VLOOKUP(übertrag!I3,vierzehnü,2,),\"\")))))))","v":""},{"$f":"IF(übertrag!$H$2=1,VLOOKUP(übertrag!I3,_jhg1,2,),IF($H$2=2,VLOOKUP(übertrag!I3,_jhg2,2,),IF($H$2=3,VLOOKUP(übertrag!I3,_jhg3,2,),IF($H$2=4,VLOOKUP(übertrag!I3,_jhg4,2,),IF($H$2=5,VLOOKUP(übertrag!I3,_jhg5,2,),IF($H$2=6,VLOOKUP(übertrag!I3,_jhg6,2,),IF(übertrag!$H$2=7,VLOOKUP(übertrag!I3,_jhg7,2,),\"\")))))))","v":0},{"$f":"IF($H$2=8,VLOOKUP(übertrag!I3,_jhg8,2,),IF($H$2=9,VLOOKUP(übertrag!I3,_jhg9,2,),IF($H$2=10,VLOOKUP(übertrag!I3,_jhg10,2,),IF($H$2=11,VLOOKUP(übertrag!I3,_jhg11,2,),IF($H$2=12,VLOOKUP(übertrag!I3,_jhg12,2,),IF(übertrag!$H$2=13,VLOOKUP(übertrag!I3,_jhg13,2,),IF(übertrag!$H$2=14,VLOOKUP(übertrag!I3,_jhg14,2,),\"\")))))))","v":""},{"$f":"IF(übertrag!$H$2=1,VLOOKUP(übertrag!I3,paß1a,übertrag!O31+1,),IF($H$2=2,VLOOKUP(übertrag!I3,paß2a,übertrag!O31+1,),IF($H$2=3,VLOOKUP(übertrag!I3,paß3a,übertrag!O31+1,),IF($H$2=4,VLOOKUP(übertrag!I3,paß4a,übertrag!O31+1,),IF($H$2=5,VLOOKUP(übertrag!I3,paß5a,übertrag!O31+1,),IF($H$2=6,VLOOKUP(übertrag!I3,paß6a,übertrag!O31+1,),IF(übertrag!$H$2=7,VLOOKUP(übertrag!I3,paß7a,übertrag!O31+1,),\"\")))))))","v":0},{"$f":"IF($H$2=8,VLOOKUP(übertrag!I3,paß8a,übertrag!O31+1,),IF($H$2=9,VLOOKUP(übertrag!I3,paß9a,übertrag!O31+1,),IF($H$2=10,VLOOKUP(übertrag!I3,paß10a,übertrag!O31+1,),IF($H$2=11,VLOOKUP(übertrag!I3,paß11a,übertrag!O31+1,),IF($H$2=12,VLOOKUP(übertrag!I3,paß12a,übertrag!O31+1,),IF($H$2=13,VLOOKUP(übertrag!I3,paß13a,übertrag!O31+1,),IF($H$2=14,VLOOKUP(übertrag!I3,paß14a,übertrag!O31+1,),\"\")))))))","v":""},false,false,null,null,2,{"$f":"'MANNSCHAFTEN+SPIELER'!A54","v":0},null,null,null,{"$f":"IF(I17,VLOOKUP(übertrag!I17,Heimü,2,),\"\")","v":0},null,{"$f":"Z3 &AB18&O17&AB19","v":"0 (0)"},{"$f":"IF(K3=\"\",L3&AB18&P3&AB19,K3&AB18&O3&AB19)","v":"0 (0)"},{"$f":"IF(K3=\"\",L3&AB18&P17&AB19,K3&AB18&P17&AB19)","v":"0 ()"},2,2,2]
[13,9,9,13,null,null,null,null,4,null,{"$f":"IF(übertrag!$H$2=1,VLOOKUP(übertrag!I4,einsü,2,),IF($H$2=2,VLOOKUP(übertrag!I4,zweiü,2,),IF($H$2=3,VLOOKUP(übertrag!I4,dreiü,2,),IF($H$2=4,VLOOKUP(übertrag!I4,vierü,2,),IF($H$2=5,VLOOKUP(übertrag!I4,fünfü,2,),IF($H$2=6,VLOOKUP(übertrag!I4,sechsü,2,),IF($H$2=7,VLOOKUP(übertrag!I4,siebenü,2,),\"\")))))))","v":0},{"$f":"IF($H$2=8,VLOOKUP(übertrag!I4,achtü,2,),IF($H$2=9,VLOOKUP(übertrag!I4,neunü,2,),IF($H$2=10,VLOOKUP(übertrag!I4,zehnü,2,),IF($H$2=11,VLOOKUP(übertrag!I4,elfü,2,),IF($H$2=12,VLOOKUP(übertrag!I4,zwoelfü,2,),IF($H$2=13,VLOOKUP(übertrag!I4,dreizehnü,2,),IF($H$2=14,VLOOKUP(übertrag!I4,vierzehnü,2,),\"\")))))))","v":""},{"$f":"IF(übertrag!$H$2=1,VLOOKUP(übertrag!I4,_jhg1,2,),IF($H$2=2,VLOOKUP(übertrag!I4,_jhg2,2,),IF($H$2=3,VLOOKUP(übertrag!I4,_jhg3,2,),IF($H$2=4,VLOOKUP(übertrag!I4,_jhg4,2,),IF($H$2=5,VLOOKUP(übertrag!I4,_jhg5,2,),IF($H$2=6,VLOOKUP(übertrag!I4,_jhg6,2,),IF(übertrag!$H$2=7,VLOOKUP(übertrag!I4,_jhg7,2,),\"\")))))))","v":0},{"$f":"IF($H$2=8,VLOOKUP(übertrag!I4,_jhg8,2,),IF($H$2=9,VLOOKUP(übertrag!I4,_jhg9,2,),IF($H$2=10,VLOOKUP(übertrag!I4,_jhg10,2,),IF($H$2=11,VLOOKUP(übertrag!I4,_jhg11,2,),IF($H$2=12,VLOOKUP(übertrag!I4,_jhg12,2,),IF(übertrag!$H$2=13,VLOOKUP(übertrag!I4,_jhg13,2,),IF(übertrag!$H$2=14,VLOOKUP(übertrag!I4,_jhg14,2,),\"\")))))))","v":""},{"$f":"IF(übertrag!$H$2=1,VLOOKUP(übertrag!I4,paß1a,übertrag!O32+1,),IF($H$2=2,VLOOKUP(übertrag!I4,paß2a,übertrag!O32+1,),IF($H$2=3,VLOOKUP(übertrag!I4,paß3a,übertrag!O32+1,),IF($H$2=4,VLOOKUP(übertrag!I4,paß4a,übertrag!O32+1,),IF($H$2=5,VLOOKUP(übertrag!I4,paß5a,übertrag!O32+1,),IF($H$2=6,VLOOKUP(übertrag!I4,paß6a,übertrag!O32+1,),IF(übertrag!$H$2=7,VLOOKUP(übertrag!I4,paß7a,übertrag!O32+1,),\"\")))))))","v":0},{"$f":"IF($H$2=8,VLOOKUP(übertrag!I4,paß8a,übertrag!O32+1,),IF($H$2=9,VLOOKUP(übertrag!I4,paß9a,übertrag!O32+1,),IF($H$2=10,VLOOKUP(übertrag!I4,paß10a,übertrag!O32+1,),IF($H$2=11,VLOOKUP(übertrag!I4,paß11a,übertrag!O32+1,),IF($H$2=12,VLOOKUP(übertrag!I4,paß12a,übertrag!O32+1,),IF($H$2=13,VLOOKUP(übertrag!I4,paß13a,übertrag!O32+1,),IF($H$2=14,VLOOKUP(übertrag!I4,paß14a,übertrag!O32+1,),\"\")))))))","v":""},false,null,null,null,3,{"$f":"'MANNSCHAFTEN+SPIELER'!A105","v":"Gast 3"},null,null,null,{"$f":"IF(I18,VLOOKUP(übertrag!I18,Heimü,2,),\"\")","v":0},null,{"$f":"Z4 &AB18&O18&AB19","v":"0 (0)"},{"$f":"IF(K4=\"\",L4&AB18&P4&AB19,K4&AB18&O4&AB19)","v":"0 (0)"},{"$f":"IF(K4=\"\",L4&AB18&P18&AB19,K4&AB18&P18&AB19)","v":"0 ()"},3,3,3]
[13,1,null,13,null,null,null,null,5,null,{"$f":"IF(übertrag!$H$2=1,VLOOKUP(übertrag!I5,einsü,2,),IF($H$2=2,VLOOKUP(übertrag!I5,zweiü,2,),IF($H$2=3,VLOOKUP(übertrag!I5,dreiü,2,),IF($H$2=4,VLOOKUP(übertrag!I5,vierü,2,),IF($H$2=5,VLOOKUP(übertrag!I5,fünfü,2,),IF($H$2=6,VLOOKUP(übertrag!I5,sechsü,2,),IF($H$2=7,VLOOKUP(übertrag!I5,siebenü,2,),\"\")))))))","v":0},{"$f":"IF($H$2=8,VLOOKUP(übertrag!I5,achtü,2,),IF($H$2=9,VLOOKUP(übertrag!I5,neunü,2,),IF($H$2=10,VLOOKUP(übertrag!I5,zehnü,2,),IF($H$2=11,VLOOKUP(übertrag!I5,elfü,2,),IF($H$2=12,VLOOKUP(übertrag!I5,zwoelfü,2,),IF($H$2=13,VLOOKUP(übertrag!I5,dreizehnü,2,),IF($H$2=14,VLOOKUP(übertrag!I5,vierzehnü,2,),\"\")))))))","v":""},{"$f":"IF(übertrag!$H$2=1,VLOOKUP(übertrag!I5,_jhg1,2,),IF($H$2=2,VLOOKUP(übertrag!I5,_jhg2,2,),IF($H$2=3,VLOOKUP(übertrag!I5,_jhg3,2,),IF($H$2=4,VLOOKUP(übertrag!I5,_jhg4,2,),IF($H$2=5,VLOOKUP(übertrag!I5,_jhg5,2,),IF($H$2=6,VLOOKUP(übertrag!I5,_jhg6,2,),IF(übertrag!$H$2=7,VLOOKUP(übertrag!I5,_jhg7,2,),\"\")))))))","v":0},{"$f":"IF($H$2=8,VLOOKUP(übertrag!I5,_jhg8,2,),IF($H$2=9,VLOOKUP(übertrag!I5,_jhg9,2,),IF($H$2=10,VLOOKUP(übertrag!I5,_jhg10,2,),IF($H$2=11,VLOOKUP(übertrag!I5,_jhg11,2,),IF($H$2=12,VLOOKUP(übertrag!I5,_jhg12,2,),IF(übertrag!$H$2=13,VLOOKUP(übertrag!I5,_jhg13,2,),IF(übertrag!$H$2=14,VLOOKUP(übertrag!I5,_jhg14,2,),\"\")))))))","v":""},{"$f":"IF(übertrag!$H$2=1,VLOOKUP(übertrag!I5,paß1a,übertrag!O33+1,),IF($H$2=2,VLOOKUP(übertrag!I5,paß2a,übertrag!O33+1,),IF($H$2=3,VLOOKUP(übertrag!I5,paß3a,übertrag!O33+1,),IF($H$2=4,VLOOKUP(übertrag!I5,paß4a,übertrag!O33+1,),IF($H$2=5,VLOOKUP(übertrag!I5,paß5a,übertrag!O33+1,),IF($H$2=6,VLOOKUP(übertrag!I5,paß6a,übertrag!O33+1,),IF(übertrag!$H$2=7,VLOOKUP(übertrag!I5,paß7a,übertrag!O33+1,),\"\")))))))","v":0},{"$f":"IF($H$2=8,VLOOKUP(übertrag!I5,paß8a,übertrag!O33+1,),IF($H$2=9,VLOOKUP(übertrag!I5,paß9a,übertrag!O33+1,),IF($H$2=10,VLOOKUP(übertrag!I5,paß10a,übertrag!O33+1,),IF($H$2=11,VLOOKUP(übertrag!I5,paß11a,übertrag!O33+1,),IF($H$2=12,VLOOKUP(übertrag!I5,paß12a,übertrag!O33+1,),IF($H$2=13,VLOOKUP(übertrag!I5,paß13a,übertrag!O33+1,),IF($H$2=14,VLOOKUP(übertrag!I5,paß14a,übertrag!O33+1,),\"\")))))))","v":""},true,null,null,null,4,{"$f":"'MANNSCHAFTEN+SPIELER'!A156","v":"Gast 4"},null,null,null,{"$f":"IF(I19,VLOOKUP(übertrag!I19,Heimü,2,),\"\")","v":0},null,{"$f":"Z5 &AB18&O19&AB19","v":"0 (0)"},{"$f":"IF(K5=\"\",L5&AB18&P5&AB19,K5&AB18&O5&AB19)","v":"0 (0)"},{"$f":"IF(K5=\"\",L5&AB18&P19&AB19,K5&AB18&P19&AB19)","v":"0 ()"},4,4,4]
[13,9,9,13,null,null,null,null,6,null,{"$f":"IF(übertrag!$H$2=1,VLOOKUP(übertrag!I6,einsü,2,),IF($H$2=2,VLOOKUP(übertrag!I6,zweiü,2,),IF($H$2=3,VLOOKUP(übertrag!I6,dreiü,2,),IF($H$2=4,VLOOKUP(übertrag!I6,vierü,2,),IF($H$2=5,VLOOKUP(übertrag!I6,fünfü,2,),IF($H$2=6,VLOOKUP(übertrag!I6,sechsü,2,),IF($H$2=7,VLOOKUP(übertrag!I6,siebenü,2,),\"\")))))))","v":0},{"$f":"IF($H$2=8,VLOOKUP(übertrag!I6,achtü,2,),IF($H$2=9,VLOOKUP(übertrag!I6,neunü,2,),IF($H$2=10,VLOOKUP(übertrag!I6,zehnü,2,),IF($H$2=11,VLOOKUP(übertrag!I6,elfü,2,),IF($H$2=12,VLOOKUP(übertrag!I6,zwoelfü,2,),IF($H$2=13,VLOOKUP(übertrag!I6,dreizehnü,2,),IF($H$2=14,VLOOKUP(übertrag!I6,vierzehnü,2,),\"\")))))))","v":""},{"$f":"IF(übertrag!$H$2=1,VLOOKUP(übertrag!I6,_jhg1,2,),IF($H$2=2,VLOOKUP(übertrag!I6,_jhg2,2,),IF($H$2=3,VLOOKUP(übertrag!I6,_jhg3,2,),IF($H$2=4,VLOOKUP(übertrag!I6,_jhg4,2,),IF($H$2=5,VLOOKUP(übertrag!I6,_jhg5,2,),IF($H$2=6,VLOOKUP(übertrag!I6,_jhg6,2,),IF(übertrag!$H$2=7,VLOOKUP(übertrag!I6,_jhg7,2,),\"\")))))))","v":0},{"$f":"IF($H$2=8,VLOOKUP(übertrag!I6,_jhg8,2,),IF($H$2=9,VLOOKUP(übertrag!I6,_jhg9,2,),IF($H$2=10,VLOOKUP(übertrag!I6,_jhg10,2,),IF($H$2=11,VLOOKUP(übertrag!I6,_jhg11,2,),IF($H$2=12,VLOOKUP(übertrag!I6,_jhg12,2,),IF(übertrag!$H$2=13,VLOOKUP(übertrag!I6,_jhg13,2,),IF(übertrag!$H$2=14,VLOOKUP(übertrag!I6,_jhg14,2,),\"\")))))))","v":""},{"$f":"IF(übertrag!$H$2=1,VLOOKUP(übertrag!I6,paß1a,übertrag!O34+1,),IF($H$2=2,VLOOKUP(übertrag!I6,paß2a,übertrag!O34+1,),IF($H$2=3,VLOOKUP(übertrag!I6,paß3a,übertrag!O34+1,),IF($H$2=4,VLOOKUP(übertrag!I6,paß4a,übertrag!O34+1,),IF($H$2=5,VLOOKUP(übertrag!I6,paß5a,übertrag!O34+1,),IF($H$2=6,VLOOKUP(übertrag!I6,paß6a,übertrag!O34+1,),IF(übertrag!$H$2=7,VLOOKUP(übertrag!I6,paß7a,übertrag!O34+1,),\"\")))))))","v":0},{"$f":"IF($H$2=8,VLOOKUP(übertrag!I6,paß8a,übertrag!O34+1,),IF($H$2=9,VLOOKUP(übertrag!I6,paß9a,übertrag!O34+1,),IF($H$2=10,VLOOKUP(übertrag!I6,paß10a,übertrag!O34+1,),IF($H$2=11,VLOOKUP(übertrag!I6,paß11a,übertrag!O34+1,),IF($H$2=12,VLOOKUP(übertrag!I6,paß12a,übertrag!O34+1,),IF($H$2=13,VLOOKUP(übertrag!I6,paß13a,übertrag!O34+1,),IF($H$2=14,VLOOKUP(übertrag!I6,paß14a,übertrag!O34+1,),\"\")))))))","v":""},false,null,null,null,5,{"$f":"'MANNSCHAFTEN+SPIELER'!A207","v":"Gast 5"},null,null,null,{"$f":"IF(I20,VLOOKUP(übertrag!I20,Heimü,2,),\"\")","v":0},null,{"$f":"Z6 &AB18&O20&AB19","v":"0 (0)"},{"$f":"IF(K6=\"\",L6&AB18&P6&AB19,K6&AB18&O6&AB19)","v":"0 (0)"},{"$f":"IF(K6=\"\",L6&AB18&P20&AB19,K6&AB18&P20&AB19)","v":"0 ()"},5,5,5]
[13,1,null,13,null,null,null,null,6,null,{"$f":"IF(übertrag!$H$2=1,VLOOKUP(übertrag!I7,einsü,2,),IF($H$2=2,VLOOKUP(übertrag!I7,zweiü,2,),IF($H$2=3,VLOOKUP(übertrag!I7,dreiü,2,),IF($H$2=4,VLOOKUP(übertrag!I7,vierü,2,),IF($H$2=5,VLOOKUP(übertrag!I7,fünfü,2,),IF($H$2=6,VLOOKUP(übertrag!I7,sechsü,2,),IF($H$2=7,VLOOKUP(übertrag!I7,siebenü,2,),\"\")))))))","v":0},{"$f":"IF($H$2=8,VLOOKUP(übertrag!I7,achtü,2,),IF($H$2=9,VLOOKUP(übertrag!I7,neunü,2,),IF($H$2=10,VLOOKUP(übertrag!I7,zehnü,2,),IF($H$2=11,VLOOKUP(übertrag!I7,elfü,2,),IF($H$2=12,VLOOKUP(übertrag!I7,zwoelfü,2,),IF($H$2=13,VLOOKUP(übertrag!I7,dreizehnü,2,),IF($H$2=14,VLOOKUP(übertrag!I7,vierzehnü,2,),\"\")))))))","v":""},{"$f":"IF(übertrag!$H$2=1,VLOOKUP(übertrag!I7,_jhg1,2,),IF($H$2=2,VLOOKUP(übertrag!I7,_jhg2,2,),IF($H$2=3,VLOOKUP(übertrag!I7,_jhg3,2,),IF($H$2=4,VLOOKUP(übertrag!I7,_jhg4,2,),IF($H$2=5,VLOOKUP(übertrag!I7,_jhg5,2,),IF($H$2=6,VLOOKUP(übertrag!I7,_jhg6,2,),IF(übertrag!$H$2=7,VLOOKUP(übertrag!I7,_jhg7,2,),\"\")))))))","v":0},{"$f":"IF($H$2=8,VLOOKUP(übertrag!I7,_jhg8,2,),IF($H$2=9,VLOOKUP(übertrag!I7,_jhg9,2,),IF($H$2=10,VLOOKUP(übertrag!I7,_jhg10,2,),IF($H$2=11,VLOOKUP(übertrag!I7,_jhg11,2,),IF($H$2=12,VLOOKUP(übertrag!I7,_jhg12,2,),IF(übertrag!$H$2=13,VLOOKUP(übertrag!I7,_jhg13,2,),IF(übertrag!$H$2=14,VLOOKUP(übertrag!I7,_jhg14,2,),\"\")))))))","v":""},{"$f":"IF(übertrag!$H$2=1,VLOOKUP(übertrag!I7,paß1a,übertrag!O35+1,),IF($H$2=2,VLOOKUP(übertrag!I7,paß2a,übertrag!O35+1,),IF($H$2=3,VLOOKUP(übertrag!I7,paß3a,übertrag!O35+1,),IF($H$2=4,VLOOKUP(übertrag!I7,paß4a,übertrag!O35+1,),IF($H$2=5,VLOOKUP(übertrag!I7,paß5a,übertrag!O35+1,),IF($H$2=6,VLOOKUP(übertrag!I7,paß6a,übertrag!O35+1,),IF(übertrag!$H$2=7,VLOOKUP(übertrag!I7,paß7a,übertrag!O35+1,),\"\")))))))","v":0},{"$f":"IF($H$2=8,VLOOKUP(übertrag!I7,paß8a,übertrag!O35+1,),IF($H$2=9,VLOOKUP(übertrag!I7,paß9a,übertrag!O35+1,),IF($H$2=10,VLOOKUP(übertrag!I7,paß10a,übertrag!O35+1,),IF($H$2=11,VLOOKUP(übertrag!I7,paß11a,übertrag!O35+1,),IF($H$2=12,VLOOKUP(übertrag!I7,paß12a,übertrag!O35+1,),IF($H$2=13,VLOOKUP(übertrag!I7,paß13a,übertrag!O35+1,),IF($H$2=14,VLOOKUP(übertrag!I7,paß14a,übertrag!O35+1,),\"\")))))))","v":""},false,null,null,null,6,{"$f":"'MANNSCHAFTEN+SPIELER'!A258","v":"Gast 6"},null,null,1,{"$f":"IF(I21,VLOOKUP(übertrag!I21,Heimü,2,),\"\")","v":0},null,{"$f":"Z7 &AB18&O21&AB19","v":"0 (0)"},{"$f":"IF(K7=\"\",L7&AB18&P7&AB19,K7&AB18&O7&AB19)","v":"0 (0)"},{"$f":"IF(K7=\"\",L7&AB18&P21&AB19,K7&AB18&P21&AB19)","v":"0 ()"},6,6,6]
[13,9,9,13,null,null,null,null,62,null,{"$f":"IF(übertrag!$H$2=1,VLOOKUP(übertrag!I8,einsü,2,),IF($H$2=2,VLOOKUP(übertrag!I8,zweiü,2,),IF($H$2=3,VLOOKUP(übertrag!I8,dreiü,2,),IF($H$2=4,VLOOKUP(übertrag!I8,vierü,2,),IF($H$2=5,VLOOKUP(übertrag!I8,fünfü,2,),IF($H$2=6,VLOOKUP(übertrag!I8,sechsü,2,),IF($H$2=7,VLOOKUP(übertrag!I8,siebenü,2,),\"\")))))))","v":0},{"$f":"IF($H$2=8,VLOOKUP(übertrag!I8,achtü,2,),IF($H$2=9,VLOOKUP(übertrag!I8,neunü,2,),IF($H$2=10,VLOOKUP(übertrag!I8,zehnü,2,),IF($H$2=11,VLOOKUP(übertrag!I8,elfü,2,),IF($H$2=12,VLOOKUP(übertrag!I8,zwoelfü,2,),IF($H$2=13,VLOOKUP(übertrag!I8,dreizehnü,2,),IF($H$2=14,VLOOKUP(übertrag!I8,vierzehnü,2,),\"\")))))))","v":""},{"$f":"IF(übertrag!$H$2=1,VLOOKUP(übertrag!I8,_jhg1,2,),IF($H$2=2,VLOOKUP(übertrag!I8,_jhg2,2,),IF($H$2=3,VLOOKUP(übertrag!I8,_jhg3,2,),IF($H$2=4,VLOOKUP(übertrag!I8,_jhg4,2,),IF($H$2=5,VLOOKUP(übertrag!I8,_jhg5,2,),IF($H$2=6,VLOOKUP(übertrag!I8,_jhg6,2,),IF(übertrag!$H$2=7,VLOOKUP(übertrag!I8,_jhg7,2,),\"\")))))))","v":0},{"$f":"IF($H$2=8,VLOOKUP(übertrag!I8,_jhg8,2,),IF($H$2=9,VLOOKUP(übertrag!I8,_jhg9,2,),IF($H$2=10,VLOOKUP(übertrag!I8,_jhg10,2,),IF($H$2=11,VLOOKUP(übertrag!I8,_jhg11,2,),IF($H$2=12,VLOOKUP(übertrag!I8,_jhg12,2,),IF(übertrag!$H$2=13,VLOOKUP(übertrag!I8,_jhg13,2,),IF(übertrag!$H$2=14,VLOOKUP(übertrag!I8,_jhg14,2,),\"\")))))))","v":""},{"$f":"IF(übertrag!$H$2=1,VLOOKUP(übertrag!I8,paß1a,übertrag!O36+1,),IF($H$2=2,VLOOKUP(übertrag!I8,paß2a,übertrag!O36+1,),IF($H$2=3,VLOOKUP(übertrag!I8,paß3a,übertrag!O36+1,),IF($H$2=4,VLOOKUP(übertrag!I8,paß4a,übertrag!O36+1,),IF($H$2=5,VLOOKUP(übertrag!I8,paß5a,übertrag!O36+1,),IF($H$2=6,VLOOKUP(übertrag!I8,paß6a,übertrag!O36+1,),IF(übertrag!$H$2=7,VLOOKUP(übertrag!I8,paß7a,übertrag!O36+1,),\"\")))))))","v":0},{"$f":"IF($H$2=8,VLOOKUP(übertrag!I8,paß8a,übertrag!O36+1,),IF($H$2=9,VLOOKUP(übertrag!I8,paß9a,übertrag!O36+1,),IF($H$2=10,VLOOKUP(übertrag!I8,paß10a,übertrag!O36+1,),IF($H$2=11,VLOOKUP(übertrag!I8,paß11a,übertrag!O36+1,),IF($H$2=12,VLOOKUP(übertrag!I8,paß12a,übertrag!O36+1,),IF($H$2=13,VLOOKUP(übertrag!I8,paß13a,übertrag!O36+1,),IF($H$2=14,VLOOKUP(übertrag!I8,paß14a,übertrag!O36+1,),\"\")))))))","v":""},false,null,null,null,7,{"$f":"'MANNSCHAFTEN+SPIELER'!A309","v":"Gast 7"},null,null,3,{"$f":"IF(I22,VLOOKUP(übertrag!I22,Heimü,2,),\"\")","v":0},null,{"$f":"Z8 &AB18&O22&AB19","v":"0 (0)"},{"$f":"IF(K8=\"\",L8&AB18&P8&AB19,K8&AB18&O8&AB19)","v":"0 (0)"},{"$f":"IF(K8=\"\",L8&AB18&P22&AB19,K8&AB18&P22&AB19)","v":"0 ()"},7,7,7]
[null,null,null,null,null,null,null,null,1,null,{"$f":"IF(übertrag!$H$2=1,VLOOKUP(übertrag!I9,einsü,2,),IF($H$2=2,VLOOKUP(übertrag!I9,zweiü,2,),IF($H$2=3,VLOOKUP(übertrag!I9,dreiü,2,),IF($H$2=4,VLOOKUP(übertrag!I9,vierü,2,),IF($H$2=5,VLOOKUP(übertrag!I9,fünfü,2,),IF($H$2=6,VLOOKUP(übertrag!I9,sechsü,2,),IF($H$2=7,VLOOKUP(übertrag!I9,siebenü,2,),\"\")))))))","v":0},{"$f":"IF($H$2=8,VLOOKUP(übertrag!I9,achtü,2,),IF($H$2=9,VLOOKUP(übertrag!I9,neunü,2,),IF($H$2=10,VLOOKUP(übertrag!I9,zehnü,2,),IF($H$2=11,VLOOKUP(übertrag!I9,elfü,2,),IF($H$2=12,VLOOKUP(übertrag!I9,zwoelfü,2,),IF($H$2=13,VLOOKUP(übertrag!I9,dreizehnü,2,),IF($H$2=14,VLOOKUP(übertrag!I9,vierzehnü,2,),\"\")))))))","v":""},{"$f":"IF(übertrag!$H$2=1,VLOOKUP(übertrag!I9,_jhg1,2,),IF($H$2=2,VLOOKUP(übertrag!I9,_jhg2,2,),IF($H$2=3,VLOOKUP(übertrag!I9,_jhg3,2,),IF($H$2=4,VLOOKUP(übertrag!I9,_jhg4,2,),IF($H$2=5,VLOOKUP(übertrag!I9,_jhg5,2,),IF($H$2=6,VLOOKUP(übertrag!I9,_jhg6,2,),IF(übertrag!$H$2=7,VLOOKUP(übertrag!I9,_jhg7,2,),\"\")))))))","v":0},{"$f":"IF($H$2=8,VLOOKUP(übertrag!I9,_jhg8,2,),IF($H$2=9,VLOOKUP(übertrag!I9,_jhg9,2,),IF($H$2=10,VLOOKUP(übertrag!I9,_jhg10,2,),IF($H$2=11,VLOOKUP(übertrag!I9,_jhg11,2,),IF($H$2=12,VLOOKUP(übertrag!I9,_jhg12,2,),IF(übertrag!$H$2=13,VLOOKUP(übertrag!I9,_jhg13,2,),IF(übertrag!$H$2=14,VLOOKUP(übertrag!I9,_jhg14,2,),\"\")))))))","v":""},{"$f":"IF(übertrag!$H$2=1,VLOOKUP(übertrag!I9,paß1a,übertrag!O37+1,),IF($H$2=2,VLOOKUP(übertrag!I9,paß2a,übertrag!O37+1,),IF($H$2=3,VLOOKUP(übertrag!I9,paß3a,übertrag!O37+1,),IF($H$2=4,VLOOKUP(übertrag!I9,paß4a,übertrag!O37+1,),IF($H$2=5,VLOOKUP(übertrag!I9,paß5a,übertrag!O37+1,),IF($H$2=6,VLOOKUP(übertrag!I9,paß6a,übertrag!O37+1,),IF(übertrag!$H$2=7,VLOOKUP(übertrag!I2,paß7a,übertrag!O37+1,),\"\")))))))","v":0},{"$f":"IF($H$2=8,VLOOKUP(übertrag!I9,paß8a,übertrag!O37+1,),IF($H$2=9,VLOOKUP(übertrag!I9,paß9a,übertrag!O37+1,),IF($H$2=10,VLOOKUP(übertrag!I9,paß10a,übertrag!O37+1,),IF($H$2=11,VLOOKUP(übertrag!I9,paß11a,übertrag!O37+1,),IF($H$2=12,VLOOKUP(übertrag!I9,paß12a,übertrag!O37+1,),IF($H$2=13,VLOOKUP(übertrag!I9,paß13a,übertrag!O37+1,),IF($H$2=14,VLOOKUP(übertrag!I9,paß14a,übertrag!O37+1,),\"\")))))))","v":""},false,null,null,null,8,{"$f":"'MANNSCHAFTEN+SPIELER'!A360","v":"Gast 8"},null,null,5,{"$f":"IF(I23,VLOOKUP(übertrag!I23,Heimü,2,),\"\")","v":0},null,{"$f":"Z9 &AB18&O23&AB19","v":"0 (0)"},{"$f":"IF(K9=\"\",L9&AB18&P9&AB19,K9&AB18&O9&AB19)","v":"0 (0)"},{"$f":"IF(K9=\"\",L9&AB18&P23&AB19,K9&AB18&P23&AB19)","v":"0 ()"},8,8,8]
[null,9,9,null,null,null,null,null,11,null,{"$f":"IF(übertrag!$H$2=1,VLOOKUP(übertrag!I10,einsü,2,),IF($H$2=2,VLOOKUP(übertrag!I10,zweiü,2,),IF($H$2=3,VLOOKUP(übertrag!I10,dreiü,2,),IF($H$2=4,VLOOKUP(übertrag!I10,vierü,2,),IF($H$2=5,VLOOKUP(übertrag!I10,fünfü,2,),IF($H$2=6,VLOOKUP(übertrag!I10,sechsü,2,),\"\"))))))","v":0},{"$f":"IF(übertrag!$H$2=7,VLOOKUP(übertrag!I10,siebenü,2,),IF($H$2=8,VLOOKUP(übertrag!I10,achtü,2,),IF($H$2=9,VLOOKUP(übertrag!I10,neunü,2,),IF($H$2=10,VLOOKUP(übertrag!I10,zehnü,2,),IF($H$2=11,VLOOKUP(übertrag!I10,elfü,2,),IF($H$2=12,VLOOKUP(übertrag!I10,Heimü,2,),\"\"))))))","v":""},{"$f":"IF(übertrag!$H$2=1,VLOOKUP(übertrag!I10,_jhg1,2,),IF($H$2=2,VLOOKUP(übertrag!I10,_jhg2,2,),IF($H$2=3,VLOOKUP(übertrag!I10,_jhg3,2,),IF($H$2=4,VLOOKUP(übertrag!I10,_jhg4,2,),IF($H$2=5,VLOOKUP(übertrag!I10,_jhg5,2,),IF($H$2=6,VLOOKUP(übertrag!I10,_jhg6,2,),\"\"))))))","v":0},{"$f":"IF(übertrag!$H$2=7,VLOOKUP(übertrag!I10,_jhg7,2,),IF($H$2=8,VLOOKUP(übertrag!I10,_jhg8,2,),IF($H$2=9,VLOOKUP(übertrag!I10,_jhg9,2,),IF($H$2=10,VLOOKUP(übertrag!I10,_jhg10,2,),IF($H$2=11,VLOOKUP(übertrag!I10,_jhg11,2,),IF($H$2=12,VLOOKUP(übertrag!I10,jhgheim,2,),\"\"))))))","v":""},{"$f":"IF(übertrag!$H$2=1,VLOOKUP(übertrag!I10,paß1,2,),IF($H$2=2,VLOOKUP(übertrag!I10,paß2,2,),IF($H$2=3,VLOOKUP(übertrag!I10,paß3,2,),IF($H$2=4,VLOOKUP(übertrag!I10,paß4,2,),IF($H$2=5,VLOOKUP(übertrag!I10,paß5,2,),IF($H$2=6,VLOOKUP(übertrag!I10,paß6,2,),\"\"))))))","v":0},{"$f":"IF(übertrag!$H$2=7,VLOOKUP(übertrag!I10,paß7,2,),IF($H$2=8,VLOOKUP(übertrag!I10,paß8,2,),IF($H$2=9,VLOOKUP(übertrag!I10,paß9,2,),IF($H$2=10,VLOOKUP(übertrag!I10,paß10,2,),IF($H$2=11,VLOOKUP(übertrag!I10,paß11,2,),IF($H$2=12,VLOOKUP(übertrag!I10,paßheim,2,),\"\"))))))","v":""},false,null,null,null,9,{"$f":"'MANNSCHAFTEN+SPIELER'!A411","v":"Gast 9"},null,null,6,{"$f":"IF(I24,VLOOKUP(übertrag!I24,Heimü,2,),\"\")","v":0},null,null,null,null,9,9,9]
[null,null,null,null,null,null,null,null,1,null,{"$f":"IF(übertrag!$H$2=1,VLOOKUP(übertrag!I11,einsü,2,),IF($H$2=2,VLOOKUP(übertrag!I11,zweiü,2,),IF($H$2=3,VLOOKUP(übertrag!I11,dreiü,2,),IF($H$2=4,VLOOKUP(übertrag!I11,vierü,2,),IF($H$2=5,VLOOKUP(übertrag!I11,fünfü,2,),IF($H$2=6,VLOOKUP(übertrag!I11,sechsü,2,),\"\"))))))","v":0},{"$f":"IF(übertrag!$H$2=7,VLOOKUP(übertrag!I11,siebenü,2,),IF($H$2=8,VLOOKUP(übertrag!I11,achtü,2,),IF($H$2=9,VLOOKUP(übertrag!I11,neunü,2,),IF($H$2=10,VLOOKUP(übertrag!I11,zehnü,2,),IF($H$2=11,VLOOKUP(übertrag!I11,elfü,2,),IF($H$2=12,VLOOKUP(übertrag!I11,Heimü,2,),\"\"))))))","v":""},{"$f":"IF(übertrag!$H$2=1,VLOOKUP(übertrag!I11,_jhg1,2,),IF($H$2=2,VLOOKUP(übertrag!I11,_jhg2,2,),IF($H$2=3,VLOOKUP(übertrag!I11,_jhg3,2,),IF($H$2=4,VLOOKUP(übertrag!I11,_jhg4,2,),IF($H$2=5,VLOOKUP(übertrag!I11,_jhg5,2,),IF($H$2=6,VLOOKUP(übertrag!I11,_jhg6,2,),\"\"))))))","v":0},{"$f":"IF(übertrag!$H$2=7,VLOOKUP(übertrag!I11,_jhg7,2,),IF($H$2=8,VLOOKUP(übertrag!I11,_jhg8,2,),IF($H$2=9,VLOOKUP(übertrag!I11,_jhg9,2,),IF($H$2=10,VLOOKUP(übertrag!I11,_jhg10,2,),IF($H$2=11,VLOOKUP(übertrag!I11,_jhg11,2,),IF($H$2=12,VLOOKUP(übertrag!I11,jhgheim,2,),\"\"))))))","v":""},{"$f":"IF(übertrag!$H$2=1,VLOOKUP(übertrag!I11,paß1,2,),IF($H$2=2,VLOOKUP(übertrag!I11,paß2,2,),IF($H$2=3,VLOOKUP(übertrag!I11,paß3,2,),IF($H$2=4,VLOOKUP(übertrag!I11,paß4,2,),IF($H$2=5,VLOOKUP(übertrag!I11,paß5,2,),IF($H$2=6,VLOOKUP(übertrag!I11,paß6,2,),\"\"))))))","v":0},{"$f":"IF(übertrag!$H$2=7,VLOOKUP(übertrag!I11,paß7,2,),IF($H$2=8,VLOOKUP(übertrag!I11,paß8,2,),IF($H$2=9,VLOOKUP(übertrag!I11,paß9,2,),IF($H$2=10,VLOOKUP(übertrag!I11,paß10,2,),IF($H$2=11,VLOOKUP(übertrag!I11,paß11,2,),IF($H$2=12,VLOOKUP(übertrag!I11,paßheim,2,),\"\"))))))","v":""},false,null,null,null,10,{"$f":"'MANNSCHAFTEN+SPIELER'!A462","v":"Gast 10"},null,null,9,{"$f":"IF(I25,VLOOKUP(übertrag!I25,Heimü,2,),\"\")","v":0},null,null,null,null,10,10,10]
[null,null,null,null,null,null,null,null,10,null,null,null,null,null,null,null,null,null,null,null,11,{"$f":"'MANNSCHAFTEN+SPIELER'!A513","v":"Gast 11"},null,null,2,{"$f":"IF(I26,VLOOKUP(übertrag!I26,Heimü,2,),\"\")","v":""},null,null,null,{"$f":"Z2 &AB18&L16&AB19","v":"0 ()"},11,11,11]
[null,null,null,null,null,null,null,null,10,null,null,null,null,null,null,null,null,null,null,null,12,{"$f":"'MANNSCHAFTEN+SPIELER'!A564","v":"Gast 12"},null,null,null,{"$f":"IF(I27,VLOOKUP(übertrag!I27,Heimü,2,),\"\")","v":""},null,null,null,{"$f":"Z3 &AB18&L17&AB19","v":"0 ()"},12,12,12]
[null,null,null,null,null,null,null,null,10,null,null,null,null,null,null,null,null,null,null,null,13,{"$f":"'MANNSCHAFTEN+SPIELER'!A615","v":"Gast 13"},null,null,null,null,null,null,null,{"$f":"Z4 &AB18&L18&AB19","v":"0 ()"},13,13,13]
[null,null,null,null,null,null,null,null,null,null,null,null,null,null,null,null,null,null,null,null,14,{"$f":"'MANNSCHAFTEN+SPIELER'!A666","v":"Gast 14"},null,null,null,null,null,null,null,{"$f":"Z5 &AB18&L19&AB19","v":"0 ()"},14,14,14]
[null,null,null,null,null,null,null,null,2,null,{"$f":"IF(I16,VLOOKUP(übertrag!I16,paßheim,2,),\"\")","v":0},null,{"$f":"IF(I16,VLOOKUP(übertrag!I16,jhgheim,2,),\"\")","v":"00:00:00"},null,{"$f":"IF(übertrag!I16,VLOOKUP(übertrag!I16,paßheim,übertrag!O50+1,),\"\")","v":0},null,true,null,null,null,null,null,null,null,null,{"$f":"IF(I25,VLOOKUP(übertrag!I25,Heimü,2,),\"\")","v":0},null,null,null,{"$f":"Z6 &AB18&L20&AB19","v":"0 ()"},15,15,15]
[null,9,9,null,null,null,null,null,5,null,{"$f":"IF(I17,VLOOKUP(übertrag!I17,paßheim,2,),\"\")","v":0},null,{"$f":"IF(I17,VLOOKUP(übertrag!I17,jhgheim,2,),\"\")","v":"00:00:00"},null,{"$f":"IF(übertrag!I17,VLOOKUP(übertrag!I17,paßheim,übertrag!O51+1,),\"\")","v":0},null,true,null,null,null,null,null,null,null,null,{"$f":"IF(I26,VLOOKUP(übertrag!I26,Heimü,2,),\"\")","v":""},null,null,null,{"$f":"Z7 &AB18&L21&AB19","v":"0 ()"},16,16,16]
[null,1,null,null,null,null,null,null,8,null,{"$f":"IF(I18,VLOOKUP(übertrag!I18,paßheim,2,),\"\")","v":0},null,{"$f":"IF(I18,VLOOKUP(übertrag!I18,jhgheim,2,),\"\")","v":"00:00:00"},null,{"$f":"IF(übertrag!I18,VLOOKUP(übertrag!I18,paßheim,übertrag!O52+1,),\"\")","v":0},null,true,null,null,null,null,null,null,null,null,{"$f":"IF(I27,VLOOKUP(übertrag!I27,Heimü,2,),\"\")","v":""},null," (",null,{"$f":"Z8 &AB18&L22&AB19","v":"0 ()"},17,17,17]
[null,9,9,null,null,null,null,null,5,null,{"$f":"IF(I19,VLOOKUP(übertrag!I19,paßheim,2,),\"\")","v":0},null,{"$f":"IF(I19,VLOOKUP(übertrag!I19,jhgheim,2,),\"\")","v":"00:00:00"},null,{"$f":"IF(übertrag!I19,VLOOKUP(übertrag!I19,paßheim,übertrag!O53+1,),\"\")","v":0},null,true,null,null,null,null,null,null,null,null,null,null,")",null,{"$f":"Z9 &AB18&L23&AB19","v":"0 ()"},18,18,18]
[null,null,null,null,null,null,null,null,8,null,{"$f":"IF(I20,VLOOKUP(übertrag!I20,paßheim,2,),\"\")","v":0},null,{"$f":"IF(I20,VLOOKUP(übertrag!I20,jhgheim,2,),\"\")","v":"00:00:00"},null,{"$f":"IF(übertrag!I20,VLOOKUP(übertrag!I20,paßheim,übertrag!O54+1,),\"\")","v":0},null,false,null,null,null,null,null,null,null,null,null,null,null,null,null,19,19,19]
[null,null,null,null,null,null,null,null,10,null,{"$f":"IF(I21,VLOOKUP(übertrag!I21,paßheim,2,),\"\")","v":0},null,{"$f":"IF(I21,VLOOKUP(übertrag!I21,jhgheim,2,),\"\")","v":"00:00:00"},null,{"$f":"IF(übertrag!I21,VLOOKUP(übertrag!I21,paßheim,übertrag!O55+1,),\"\")","v":0},null,true,null,null,null,null,null,null,null,null,null,null,null,null,null,20,20,20]
[null,null,null,null,null,null,null,null,11,null,{"$f":"IF(I22,VLOOKUP(übertrag!I22,paßheim,2,),\"\")","v":0},null,{"$f":"IF(I22,VLOOKUP(übertrag!I22,jhgheim,2,),\"\")","v":"00:00:00"},null,{"$f":"IF(übertrag!I22,VLOOKUP(übertrag!I22,paßheim,übertrag!O56+1,),\"\")","v":0},null,true,null,null,null,null,null,null,null,null,null,null,null,null,null,21,21,21]
[null,null,null,null,null,null,null,null,1,null,null,null,{"$f":"IF(I23,VLOOKUP(übertrag!I23,jhgheim,2,),\"\")","v":"00:00:00"},null,{"$f":"IF(übertrag!I23,VLOOKUP(übertrag!I23,paßheim,übertrag!O57+1,),\"\")","v":0},null,false,null,null,null,null,null,null,null,null,null,null,null,null,null,22,22,22]
[null,null,null,null,null,null,null,null,4,null,null,null,{"$f":"IF(I24,VLOOKUP(übertrag!I24,jhgheim,2,),\"\")","v":"00:00:00"},null,{"$f":"IF(übertrag!I24,VLOOKUP(übertrag!I24,paßheim,2,),\"\")","v":0},null,false,null,null,null,null,null,null,null,null,null,null,null,null,null,23,23,23]
[null,null,null,null,null,null,null,null,2,null,null,null,{"$f":"IF(I25,VLOOKUP(übertrag!I25,jhgheim,2,),\"\")","v":"00:00:00"},null,{"$f":"IF(übertrag!I25,VLOOKUP(übertrag!I25,paßheim,2,),\"\")","v":0},null,false,null,null,null,null,null,null,null,null,null,null,1,1,null,24,24,24]
[null,null,null,null,null,null,null,null,null,null,null,null,null,null,null,null,false,null,null,null,null,null,null,null,null,null,null,1,1,null,25,25,25]
[null,null,null,null,null,null,null,null,null,null,null,null,null,null,null,null,true,null,null,null,null,null,null,null,null,null,null,1,1,null,26,26,26]
[null,null,null,null,null,null,null,null,null,null,null,null,null,null,null,null,false,null,null,null,null,null,null,null,null,null,null,1,1]
[null,null,null,null,null,null,null,null,null,null,null,null,null,null,null,null,true]
[null,null,null,null,null,null,null,null,null,null,null,null,null,2,1,{"$f":"IF($O$30=1,VLOOKUP(übertrag!I2,einsdcupass,2,),IF($O$30=2,VLOOKUP(übertrag!I2,einsdkbpass,2,),IF($O$30=3,VLOOKUP(übertrag!I2,einslvpass,2,),\"\")))","v":{"$error":"#NAME?"}},false]
[null,null,null,null,null,null,null,null,null,null,null,null,null,3,1,null,false,null,null,null,null,null,null,null,null,null,null,"",""]
[null,null,null,null,null,null,null,null,null,null,null,null,null,4,1,null,false,null,null,null,null,null,null,null,null,null,null,14,14,null,{"$f":"IF(AF32,VLOOKUP(übertrag!AF32,Spieltage,2,),\"\")","v":1},1]
[null,null,null,null,null,null,null,null,null,null,null,null,null,5,1,null,false,null,null,null,null,null,null,null,null,null,null,55,51]
[null,null,null,null,null,null,null,null,null,null,null,null,null,6,1,null,null,null,null,null,null,null,null,null,null,null,0,"","",null,{"$f":"IF(AF32,VLOOKUP(übertrag!AF32,Spieltage,2,),\"\")","v":1},{"$f":"AE34=VLOOKUP(übertrag!AF32,Spieltage,2,)","v":true}]
[null,null,null,null,null,null,null,null,null,null,null,null,null,7,1,null,null,null,null,null,null,null,null,null,null,8,1,3,6]
[null,null,null,null,null,null,null,null,null,null,null,null,null,8,1,null,null,null,null,null,null,null,null,null,null,9,2,10,13]
[null,null,null,null,null,null,null,null,null,null,null,null,null,9,1,null,null,null,null,null,null,null,null,null,null,10,3]
[null,null,null,null,null,null,null,null,null,null,null,null,null,null,null,null,null,null,null,null,null,null,null,null,null,11,4]
[null,null,null,null,null,null,null,null,null,null,null,null,null,null,null,null,null,null,null,null,null,null,null,null,null,12,5]
[null,null,null,null,null,null,null,null,null,null,null,null,null,null,null,null,null,null,null,null,null,null,null,null,null,13,6]
[null,null,null,null,null,null,null,null,null,null,null,null,null,null,null,null,null,null,null,null,null,null,null,null,null,14,7]
[null,null,null,null,null,null,null,null,null,null,null,null,null,null,null,null,null,null,null,null,null,null,null,null,null,15,8]
[null,null,null,null,null,null,null,null,null,null,null,null,null,null,null,null,null,null,null,null,null,null,null,null,null,16,9]
[null,null,null,null,null,null,null,null,null,null,null,null,null,null,null,null,null,null,null,null,null,null,null,null,null,17,10]
[null,null,null,null,null,null,null,null,null,null,null,null,null,null,null,null,null,null,null,null,null,null,null,null,null,18,11]
[null,null,null,null,null,null,null,null,null,null,null,null,null,null,null,null,null,null,null,null,null,null,null,null,null,19,12]
[null,null,null,null,null,null,null,null,null,null,null,null,null,null,null,null,null,null,null,null,null,null,null,null,null,20,13]
[null,null,null,null,null,null,null,null,null,null,null,null,null,null,null,null,null,null,null,null,null,null,null,null,null,21,14]
[null,null,null,null,null,null,null,null,null,null,null,null,null,null,null,null,null,null,null,null,null,null,null,null,null,22,15]
[null,null,null,null,null,null,null,null,null,null,null,null,null,null,1,null,null,null,null,null,null,null,null,null,null,23,16]
[null,null,null,null,null,null,null,null,null,null,null,null,null,null,1,null,null,null,null,null,null,null,null,null,null,null,17]
[null,null,null,null,null,null,null,null,null,null,null,null,null,null,1,null,null,null,null,null,null,null,null,null,null,null,18]
[null,null,null,null,null,null,null,null,null,null,null,null,null,null,1,null,null,null,null,null,null,null,null,null,null,null,19]
[null,null,null,null,null,null,null,null,null,null,null,null,null,null,1,null,null,null,null,null,null,null,null,null,null,null,20]
[null,null,null,null,null,null,null,null,null,null,null,null,null,null,1,null,null,null,null,null,null,null,null,null,null,null,21]
[null,null,null,null,null,null,null,null,null,null,null,null,null,null,1,null,null,null,null,null,null,null,null,null,null,null,22]
[null,null,null,null,null,null,null,null,null,null,null,null,null,null,1,null,null,null,null,null,null,null,null,null,null,null,23]
[null,null,null,null,null,null,null,null,null,null,null,null,null,null,null,null,null,null,null,null,null,null,null,null,null,null,24]
[null,null,null,null,null,null,null,null,null,null,null,null,null,null,null,null,null,null,null,null,null,null,null,null,null,null,25]
[null,null,null,null,null,null,null,null,null,null,null,null,null,null,null,null,null,null,null,null,null,null,null,null,null,null,26]
[null,null,null,null,null,null,null,null,null,null,null,null,null,null,null,null,null,null,null,null,null,null,null,null,null,null,27]
[null,null,null,null,null,null,null,null,null,null,null,null,null,null,null,null,null,null,null,null,null,null,null,null,null,null,28]
[null,null,null,null,null,null,null,null,null,null,null,null,null,null,null,null,null,null,null,null,null,null,null,null,null,null,29]
[null,null,null,null,null,null,null,null,null,null,null,null,null,null,null,null,null,null,null,null,null,null,null,null,null,null,30]
[null,null,null,null,null,null,null,null,null,null,null,null,null,null,null,null,null,null,null,null,null,null,null,null,null,null,31]
[null,null,null,null,null,null,null,null,null,null,null,null,null,null,null,null,null,null,null,null,null,null,null,null,null,null,32]
[null,null,null,null,null,null,null,null,null,null,null,null,null,null,null,null,null,null,null,null,null,null,null,null,null,null,33]
[null,null,null,null,null,null,null,null,null,null,null,null,null,null,null,null,null,null,null,null,null,null,null,null,null,null,34]
[null,null,null,null,null,null,null,null,null,null,null,null,null,null,null,null,null,null,null,null,null,null,null,null,null,null,35]
[null,null,null,null,null,null,null,null,null,null,null,null,null,null,null,null,null,null,null,null,null,null,null,null,null,null,36]
[null,null,null,null,null,null,null,null,null,null,null,null,null,null,null,null,null,null,null,null,null,null,null,null,null,null,37]
[null,null,null,null,null,null,null,null,null,null,null,null,null,null,null,null,null,null,null,null,null,null,null,null,null,null,38]
[null,null,null,null,null,null,null,null,null,null,null,null,null,null,null,null,null,null,null,null,null,null,null,null,null,null,39]
[null,null,null,null,null,null,null,null,null,null,null,null,null,null,null,null,null,null,null,null,null,null,null,null,null,null,40]
[null,null,null,null,null,null,null,null,null,null,null,null,null,null,null,null,null,null,null,null,null,null,null,null,null,null,41]
[null,null,null,null,null,null,null,null,null,null,null,null,null,null,null,null,null,null,null,null,null,null,null,null,null,null,42]
[null,null,null,null,null,null,null,null,null,null,null,null,null,null,null,null,null,null,null,null,null,null,null,null,null,null,43]
[null,null,null,null,null,null,null,null,null,null,null,null,null,null,null,null,null,null,null,null,null,null,null,null,null,null,44]
[null,null,null,null,null,null,null,null,null,null,null,null,null,null,null,null,null,null,null,null,null,null,null,null,null,null,45]
[null,null,null,null,null,null,null,null,null,null,null,null,null,null,null,null,null,null,null,null,null,null,null,null,null,null,46]
[null,null,null,null,null,null,null,null,null,null,null,null,null,null,null,null,null,null,null,null,null,null,null,null,null,null,47]
[null,null,null,null,null,null,null,null,null,null,null,null,null,null,null,null,null,null,null,null,null,null,null,null,null,null,48]
[null,null,null,null,null,null,null,null,null,null,null,null,null,null,null,null,null,null,null,null,null,null,null,null,null,null,49]
[null,null,null,null,null,null,null,null,null,null,null,null,null,null,null,null,null,null,null,null,null,null,null,null,null,null,50]
[null,null,null,null,null,null,null,null,null,null,null,null,null,null,null,null,null,null,null,null,null,null,null,null,null,null,51]
[null,null,null,null,null,null,null,null,null,null,null,null,null,null,null,null,null,null,null,null,null,null,null,null,null,null,52]
[null,null,null,null,null,null,null,null,null,null,null,null,null,null,null,null,null,null,null,null,null,null,null,null,null,null,53]
[null,null,null,null,null,null,null,null,null,null,null,null,null,null,null,null,null,null,null,null,null,null,null,null,null,null,54]
[null,null,null,null,null,null,null,null,null,null,null,null,null,null,null,null,null,null,null,null,null,null,null,null,null,null,55]
[null,null,null,null,null,null,null,null,null,null,null,null,null,null,null,null,null,null,null,null,null,null,null,null,null,null,56]
[null,null,null,null,null,null,null,null,null,null,null,null,null,null,null,null,null,null,null,null,null,null,null,null,null,null,57]
[null,null,null,null,null,null,null,null,null,null,null,null,null,null,null,null,null,null,null,null,null,null,null,null,null,null,58]
[null,null,null,null,null,null,null,null,null,null,null,null,null,null,null,null,null,null,null,null,null,null,null,null,null,null,59]
[null,null,null,null,null,null,null,null,null,null,null,null,null,null,null,null,null,null,null,null,null,null,null,null,null,null,60]